Publisher Label,Publisher URI,"Supplier","Invoice ","Amount (£)","Purpose","Transaction Number","Payment Date","Organisational Unit","Cost Centre(T)","Internal category number"
"Wolverhampton City Council","http://opendatacommunities.org/id/metropolitan-district-council/wolverhampton","Access To Business","305","17,500.00","Services - Professional Fees","130094162","09/12/2015","Enterprise & Skills","Provision for New Initiatives","R4400"
"Wolverhampton City Council","http://opendatacommunities.org/id/metropolitan-district-council/wolverhampton","Access To Business","305","-17,500.00","Services - Professional Fees","130094162","09/12/2015","Enterprise & Skills","Provision for New Initiatives","R4400"
"Wolverhampton City Council","http://opendatacommunities.org/id/metropolitan-district-council/wolverhampton","Access To Business","305","17,500.00","Services - Professional Fees","130094162","09/12/2015","Enterprise & Skills","Provision for New Initiatives","R4400"
"Wolverhampton City Council","http://opendatacommunities.org/id/metropolitan-district-council/wolverhampton","Access To Business","295","2,963.57","Grant Payments","130100017","18/12/2015","Adult Education","NESS Neigh/hood Employment & Skills Serv","R4700"
"Wolverhampton City Council","http://opendatacommunities.org/id/metropolitan-district-council/wolverhampton","Access To Business","302","4,983.41","Grant Payments","130100018","18/12/2015","Adult Education","NESS Neigh/hood Employment & Skills Serv","R4700"
"Wolverhampton City Council","http://opendatacommunities.org/id/metropolitan-district-council/wolverhampton","Access To Business","307","5,137.82","Grant Payments","130100019","18/12/2015","Adult Education","NESS Neigh/hood Employment & Skills Serv","R4700"
"Wolverhampton City Council","http://opendatacommunities.org/id/metropolitan-district-council/wolverhampton","Acorn Signs (Sedgley) Limited","2407","45","Equipment - Purchase","130098187","18/12/2015","Democracy","Democratic Support","R4000"
"Wolverhampton City Council","http://opendatacommunities.org/id/metropolitan-district-council/wolverhampton","Acorn Signs (Sedgley) Limited","2408","15","Equipment - Purchase","130098469","29/12/2015","Democracy","Democratic Support","R4000"
"Wolverhampton City Council","http://opendatacommunities.org/id/metropolitan-district-council/wolverhampton","M Williams","19","580","TPP - Maintenance Contractor - General","190183693","07/12/2015","Parking Services","Cycling Schemes - Bikeability","R5720"
"Wolverhampton City Council","http://opendatacommunities.org/id/metropolitan-district-council/wolverhampton","P Kitterick","17","510","TPP - Maintenance Contractor - General","190183700","04/12/2015","Parking Services","Cycling Schemes - Bikeability","R5720"
"Wolverhampton City Council","http://opendatacommunities.org/id/metropolitan-district-council/wolverhampton","Partisip8/P Sicilia","682/1","1,795.00","TPP - Maintenance Contractor - General","190183695","07/12/2015","Parking Services","Cycling Schemes - Bikeability","R5720"
"Wolverhampton City Council","http://opendatacommunities.org/id/metropolitan-district-council/wolverhampton","Partisip8/P Sicilia","682","22.5","TPP - Maintenance Contractor - General","190183694","07/12/2015","Transportation","Travelwise","R5720"
"Wolverhampton City Council","http://opendatacommunities.org/id/metropolitan-district-council/wolverhampton","Philip Lay","12","1,180.00","TPP - Maintenance Contractor - General","190183690","07/12/2015","Parking Services","Cycling Schemes - Bikeability","R5720"
"Wolverhampton City Council","http://opendatacommunities.org/id/metropolitan-district-council/wolverhampton","R Millard","20","30","TPP - Maintenance Contractor - General","190183691","07/12/2015","Parking Services","Cycling Schemes - Bikeability","R5720"
"Wolverhampton City Council","http://opendatacommunities.org/id/metropolitan-district-council/wolverhampton","R Millard","000020/1","155","Services - Professional Fees","190183692","07/12/2015","Parking Services","Advisory Road Markings and Disabled Bays","R4400"
"Wolverhampton City Council","http://opendatacommunities.org/id/metropolitan-district-council/wolverhampton","R Millington","18","400","TPP - Maintenance Contractor - General","190183701","07/12/2015","Parking Services","Cycling Schemes - Bikeability","R5720"
"Wolverhampton City Council","http://opendatacommunities.org/id/metropolitan-district-council/wolverhampton","Adt Fire And Security PLC","31071149 - 02","164","R&M - Departmental planned (internal)","130097970","07/12/2015","Engineering & Civic Centre","Statutory Services (10RM)","R2000"
"Wolverhampton City Council","http://opendatacommunities.org/id/metropolitan-district-council/wolverhampton","Adt Fire And Security PLC","30319853 - 02","1,269.80","Fixtures and Fittings - R&M","130098485","09/12/2015","School Planning & Resources","Music Support Team","R2502"
"Wolverhampton City Council","http://opendatacommunities.org/id/metropolitan-district-council/wolverhampton","Adt Fire And Security PLC","27699698-02 DEBIT","1,112.00","R&M - Departmental planned (external)","130100365","18/12/2015","Schools","Wednesfield High School","R2001"
"Wolverhampton City Council","http://opendatacommunities.org/id/metropolitan-district-council/wolverhampton","Adt Fire And Security PLC","31093733 - 02","156","Services - Security","130096453","16/12/2015","Engineering & Civic Centre","Statutory Services (10RM)","R4405"
"Wolverhampton City Council","http://opendatacommunities.org/id/metropolitan-district-council/wolverhampton","Adt Fire And Security PLC","131109962 - 02","356.54","Services - Security","130099982","18/12/2015","Engineering & Civic Centre","Statutory Services (10RM)","R4405"
"Wolverhampton City Council","http://opendatacommunities.org/id/metropolitan-district-council/wolverhampton","Af Blakemore/Blakemore Foodservice","4867351","63.2","Provisions (Not for resale)","130098527","22/12/2015","Older People Provider Services","Woden Resource Centre","R4101"
"Wolverhampton City Council","http://opendatacommunities.org/id/metropolitan-district-council/wolverhampton","Af Blakemore/Blakemore Foodservice","4867351","315.65","Provisions (Not for resale)","130098527","22/12/2015","Older People Provider Services","Woden Resource Centre","R4101"
"Wolverhampton City Council","http://opendatacommunities.org/id/metropolitan-district-council/wolverhampton","Af Blakemore/Blakemore Foodservice","4869312","54.83","Provisions (Not for resale)","130098528","22/12/2015","Older People Provider Services","Woden Resource Centre","R4101"
"Wolverhampton City Council","http://opendatacommunities.org/id/metropolitan-district-council/wolverhampton","Af Blakemore/Blakemore Foodservice","4869312","-54.83","Provisions (Not for resale)","130098528","22/12/2015","Older People Provider Services","Woden Resource Centre","R4101"
"Wolverhampton City Council","http://opendatacommunities.org/id/metropolitan-district-council/wolverhampton","Af Blakemore/Blakemore Foodservice","4869312","54.83","Provisions (Not for resale)","130098528","22/12/2015","Older People Provider Services","Woden Resource Centre","R4101"
"Wolverhampton City Council","http://opendatacommunities.org/id/metropolitan-district-council/wolverhampton","Af Blakemore/Blakemore Foodservice","4856913","59.3","Provisions (Not for resale)","130098522","22/12/2015","Older People Provider Services","Woden Resource Centre","R4101"
"Wolverhampton City Council","http://opendatacommunities.org/id/metropolitan-district-council/wolverhampton","Af Blakemore/Blakemore Foodservice","4856913","267.94","Provisions (Not for resale)","130098522","22/12/2015","Older People Provider Services","Woden Resource Centre","R4101"
"Wolverhampton City Council","http://opendatacommunities.org/id/metropolitan-district-council/wolverhampton","Af Blakemore/Blakemore Foodservice","WCC000083","910.71","Provisions (Not for resale)","130097397","22/12/2015","Leisure Services","WV Active Catering","R4101"
"Wolverhampton City Council","http://opendatacommunities.org/id/metropolitan-district-council/wolverhampton","Af Blakemore/Blakemore Foodservice","WCC000083","-910.71","Provisions (Not for resale)","130097397","22/12/2015","Leisure Services","WV Active Catering","R4101"
"Wolverhampton City Council","http://opendatacommunities.org/id/metropolitan-district-council/wolverhampton","Af Blakemore/Blakemore Foodservice","WCC000083","677.67","Provisions (Not for resale)","130097397","22/12/2015","Leisure Services","WV Active Catering","R4101"
"Wolverhampton City Council","http://opendatacommunities.org/id/metropolitan-district-council/wolverhampton","Af Blakemore/Blakemore Foodservice","WCC000083","233.04","Provisions (Not for resale)","130097397","22/12/2015","Leisure Services","WV Active Catering","R4101"
"Wolverhampton City Council","http://opendatacommunities.org/id/metropolitan-district-council/wolverhampton","Af Blakemore/Blakemore Foodservice","4847339","345.68","Provisions (Not for resale)","130095978","07/12/2015","Older People Provider Services","Woden Resource Centre","R4101"
"Wolverhampton City Council","http://opendatacommunities.org/id/metropolitan-district-council/wolverhampton","Af Blakemore/Blakemore Foodservice","4847339","-345.68","Provisions (Not for resale)","130095978","07/12/2015","Older People Provider Services","Woden Resource Centre","R4101"
"Wolverhampton City Council","http://opendatacommunities.org/id/metropolitan-district-council/wolverhampton","Af Blakemore/Blakemore Foodservice","4847339","66.49","Provisions (Not for resale)","130095978","07/12/2015","Older People Provider Services","Woden Resource Centre","R4101"
"Wolverhampton City Council","http://opendatacommunities.org/id/metropolitan-district-council/wolverhampton","Af Blakemore/Blakemore Foodservice","4847339","279.19","Provisions (Not for resale)","130095978","07/12/2015","Older People Provider Services","Woden Resource Centre","R4101"
"Wolverhampton City Council","http://opendatacommunities.org/id/metropolitan-district-council/wolverhampton","Af Blakemore/Blakemore Foodservice","WCA000010","570.68","Provisions (Resale)","130094917","07/12/2015","Leisure Services","WV Active Catering","R4102"
"Wolverhampton City Council","http://opendatacommunities.org/id/metropolitan-district-council/wolverhampton","Af Blakemore/Blakemore Foodservice","WCA000010","650.83","Provisions (Resale)","130094917","07/12/2015","Leisure Services","WV Active Catering","R4102"
"Wolverhampton City Council","http://opendatacommunities.org/id/metropolitan-district-council/wolverhampton","Af Blakemore/Blakemore Foodservice","4848650","14.21","Provisions (Not for resale)","130096204","07/12/2015","Older People Provider Services","Woden Resource Centre","R4101"
"Wolverhampton City Council","http://opendatacommunities.org/id/metropolitan-district-council/wolverhampton","Af Blakemore/Blakemore Foodservice","4839158","91.6","Provisions (Not for resale)","130095809","03/12/2015","Older People Provider Services","Woden Resource Centre","R4101"
"Wolverhampton City Council","http://opendatacommunities.org/id/metropolitan-district-council/wolverhampton","Af Blakemore/Blakemore Foodservice","4842401","93.24","Provisions (Resale)","130096203","03/12/2015","Adult Education","Creative Studies Delivery Area","R4102"
"Wolverhampton City Council","http://opendatacommunities.org/id/metropolitan-district-council/wolverhampton","Af Blakemore/Blakemore Foodservice","4525991","370.39","Provisions (Resale)","130089227","03/12/2015","Older People Provider Services","Woden Resource Centre","R4102"
"Wolverhampton City Council","http://opendatacommunities.org/id/metropolitan-district-council/wolverhampton","Af Blakemore/Blakemore Foodservice","4525991","-370.39","Provisions (Resale)","130089227","03/12/2015","Older People Provider Services","Woden Resource Centre","R4102"
"Wolverhampton City Council","http://opendatacommunities.org/id/metropolitan-district-council/wolverhampton","Af Blakemore/Blakemore Foodservice","4525991","294.38","Provisions (Resale)","130089227","03/12/2015","Older People Provider Services","Woden Resource Centre","R4102"
"Wolverhampton City Council","http://opendatacommunities.org/id/metropolitan-district-council/wolverhampton","Af Blakemore/Blakemore Foodservice","4525991","76.01","Provisions (Resale)","130089227","03/12/2015","Older People Provider Services","Woden Resource Centre","R4102"
"Wolverhampton City Council","http://opendatacommunities.org/id/metropolitan-district-council/wolverhampton","Af Blakemore/Blakemore Foodservice","4829490","116.05","Provisions (Not for resale)","130094888","03/12/2015","Older People Provider Services","Woden Resource Centre","R4101"
"Wolverhampton City Council","http://opendatacommunities.org/id/metropolitan-district-council/wolverhampton","Af Blakemore/Blakemore Foodservice","4829490","267.11","Provisions (Not for resale)","130094888","03/12/2015","Older People Provider Services","Woden Resource Centre","R4101"
"Wolverhampton City Council","http://opendatacommunities.org/id/metropolitan-district-council/wolverhampton","Af Blakemore/Blakemore Foodservice","4830929","16.23","Provisions (Not for resale)","130094721","03/12/2015","Older People Provider Services","Woden Resource Centre","R4101"
"Wolverhampton City Council","http://opendatacommunities.org/id/metropolitan-district-council/wolverhampton","Af Blakemore/Blakemore Foodservice","4830929","31.36","Provisions (Not for resale)","130094721","03/12/2015","Older People Provider Services","Woden Resource Centre","R4101"
"Wolverhampton City Council","http://opendatacommunities.org/id/metropolitan-district-council/wolverhampton","Af Blakemore/Blakemore Foodservice","4837434","273.93","Provisions (Not for resale)","130095617","03/12/2015","Older People Provider Services","Woden Resource Centre","R4101"
"Wolverhampton City Council","http://opendatacommunities.org/id/metropolitan-district-council/wolverhampton","Af Blakemore/Blakemore Foodservice","4837434","-273.93","Provisions (Not for resale)","130095617","03/12/2015","Older People Provider Services","Woden Resource Centre","R4101"
"Wolverhampton City Council","http://opendatacommunities.org/id/metropolitan-district-council/wolverhampton","Af Blakemore/Blakemore Foodservice","4837434","86.89","Provisions (Not for resale)","130095617","03/12/2015","Older People Provider Services","Woden Resource Centre","R4101"
"Wolverhampton City Council","http://opendatacommunities.org/id/metropolitan-district-council/wolverhampton","Af Blakemore/Blakemore Foodservice","4837434","187.04","Provisions (Not for resale)","130095617","03/12/2015","Older People Provider Services","Woden Resource Centre","R4101"
"Wolverhampton City Council","http://opendatacommunities.org/id/metropolitan-district-council/wolverhampton","Af Blakemore/Blakemore Foodservice","4848932","8.4","Provisions (Not for resale)","130096471","09/12/2015","Older People Provider Services","Woden Resource Centre","R4101"
"Wolverhampton City Council","http://opendatacommunities.org/id/metropolitan-district-council/wolverhampton","Af Blakemore/Blakemore Foodservice","4848932","64.76","Provisions (Not for resale)","130096471","09/12/2015","Older People Provider Services","Woden Resource Centre","R4101"
"Wolverhampton City Council","http://opendatacommunities.org/id/metropolitan-district-council/wolverhampton","Af Blakemore/Blakemore Foodservice","4626765","23.41","Provisions (Resale)","130096744","09/12/2015","Older People Provider Services","Bradley Lodge Resource Centre","R4102"
"Wolverhampton City Council","http://opendatacommunities.org/id/metropolitan-district-council/wolverhampton","Af Blakemore/Blakemore Foodservice","4831010","-21.84","Provisions (Resale)","130096867","09/12/2015","Older People Provider Services","Bradley Lodge Resource Centre","R4102"
"Wolverhampton City Council","http://opendatacommunities.org/id/metropolitan-district-council/wolverhampton","Af Blakemore/Blakemore Foodservice","4840983","439.13","Provisions (Resale)","130096746","09/12/2015","Older People Provider Services","Bradley Lodge Resource Centre","R4102"
"Wolverhampton City Council","http://opendatacommunities.org/id/metropolitan-district-council/wolverhampton","Af Blakemore/Blakemore Foodservice","4840983","81.18","Provisions (Resale)","130096746","09/12/2015","Older People Provider Services","Bradley Lodge Resource Centre","R4102"
"Wolverhampton City Council","http://opendatacommunities.org/id/metropolitan-district-council/wolverhampton","Af Blakemore/Blakemore Foodservice","4828768","270.43","Provisions (Resale)","130096745","09/12/2015","Older People Provider Services","Bradley Lodge Resource Centre","R4102"
"Wolverhampton City Council","http://opendatacommunities.org/id/metropolitan-district-council/wolverhampton","Af Blakemore/Blakemore Foodservice","4828768","32.78","Provisions (Resale)","130096745","09/12/2015","Older People Provider Services","Bradley Lodge Resource Centre","R4102"
"Wolverhampton City Council","http://opendatacommunities.org/id/metropolitan-district-council/wolverhampton","Af Blakemore/Blakemore Foodservice","4841233","86.84","Provisions (Resale)","130096747","09/12/2015","Older People Provider Services","Bradley Lodge Resource Centre","R4102"
"Wolverhampton City Council","http://opendatacommunities.org/id/metropolitan-district-council/wolverhampton","Af Blakemore/Blakemore Foodservice","4841233","19.18","Provisions (Resale)","130096747","09/12/2015","Older People Provider Services","Bradley Lodge Resource Centre","R4102"
"Wolverhampton City Council","http://opendatacommunities.org/id/metropolitan-district-council/wolverhampton","Af Blakemore/Blakemore Foodservice","4849104","54.68","Provisions (Resale)","130096748","09/12/2015","Older People Provider Services","Bradley Lodge Resource Centre","R4102"
"Wolverhampton City Council","http://opendatacommunities.org/id/metropolitan-district-council/wolverhampton","Af Blakemore/Blakemore Foodservice","4849104","7","Provisions (Resale)","130096748","09/12/2015","Older People Provider Services","Bradley Lodge Resource Centre","R4102"
"Wolverhampton City Council","http://opendatacommunities.org/id/metropolitan-district-council/wolverhampton","Af Blakemore/Blakemore Foodservice","4851108","60.1","Provisions (Not for resale)","130098521","09/12/2015","Adult Education","Discretionary Fund","R4101"
"Wolverhampton City Council","http://opendatacommunities.org/id/metropolitan-district-council/wolverhampton","Af Blakemore/Blakemore Foodservice","4851108","-60.1","Provisions (Not for resale)","130098521","09/12/2015","Adult Education","Discretionary Fund","R4101"
"Wolverhampton City Council","http://opendatacommunities.org/id/metropolitan-district-council/wolverhampton","Af Blakemore/Blakemore Foodservice","4851108","60.1","Provisions (Not for resale)","130098521","09/12/2015","Adult Education","Discretionary Fund","R4101"
"Wolverhampton City Council","http://opendatacommunities.org/id/metropolitan-district-council/wolverhampton","Af Blakemore/Blakemore Foodservice","4860787","-5.4","Provisions (Not for resale)","130098523","18/12/2015","Older People Provider Services","Woden Resource Centre","R4101"
"Wolverhampton City Council","http://opendatacommunities.org/id/metropolitan-district-council/wolverhampton","Af Blakemore/Blakemore Foodservice","4860796","-12.31","Provisions (Not for resale)","130098524","18/12/2015","Older People Provider Services","Woden Resource Centre","R4101"
"Wolverhampton City Council","http://opendatacommunities.org/id/metropolitan-district-council/wolverhampton","Af Blakemore/Blakemore Foodservice","4858646","13.79","Provisions (Not for resale)","130096869","18/12/2015","Older People Provider Services","Woden Resource Centre","R4101"
"Wolverhampton City Council","http://opendatacommunities.org/id/metropolitan-district-council/wolverhampton","Af Blakemore/Blakemore Foodservice","4858646","-13.79","Provisions (Not for resale)","130096869","18/12/2015","Older People Provider Services","Woden Resource Centre","R4101"
"Wolverhampton City Council","http://opendatacommunities.org/id/metropolitan-district-council/wolverhampton","Af Blakemore/Blakemore Foodservice","4858646","13.79","Provisions (Not for resale)","130096869","18/12/2015","Older People Provider Services","Woden Resource Centre","R4101"
"Wolverhampton City Council","http://opendatacommunities.org/id/metropolitan-district-council/wolverhampton","Af Blakemore/Blakemore Foodservice","4856066","-7.1","Provisions (Not for resale)","130098223","18/12/2015","Adult Education","Discretionary Fund","R4101"
"Wolverhampton City Council","http://opendatacommunities.org/id/metropolitan-district-council/wolverhampton","Af Blakemore/Blakemore Foodservice","4856066","-7.1","Provisions (Not for resale)","130098223","18/12/2015","Adult Education","Discretionary Fund","R4101"
"Wolverhampton City Council","http://opendatacommunities.org/id/metropolitan-district-council/wolverhampton","Af Blakemore/Blakemore Foodservice","4856066","7.1","Provisions (Not for resale)","130098223","18/12/2015","Adult Education","Discretionary Fund","R4101"
"Wolverhampton City Council","http://opendatacommunities.org/id/metropolitan-district-council/wolverhampton","Af Blakemore/Blakemore Foodservice","4847428","35.44","Provisions (Resale)","130098980","18/12/2015","Parking Services","Shopmobility","R4102"
"Wolverhampton City Council","http://opendatacommunities.org/id/metropolitan-district-council/wolverhampton","Af Blakemore/Blakemore Foodservice","4849851","66.45","Provisions (Resale)","130097995","11/12/2015","Older People Provider Services","Merry Hill House","R4102"
"Wolverhampton City Council","http://opendatacommunities.org/id/metropolitan-district-council/wolverhampton","Af Blakemore/Blakemore Foodservice","4849851","12.18","Provisions (Resale)","130097995","11/12/2015","Older People Provider Services","Merry Hill House","R4102"
"Wolverhampton City Council","http://opendatacommunities.org/id/metropolitan-district-council/wolverhampton","Af Blakemore/Blakemore Foodservice","4849812","154.04","Provisions (Resale)","130096749","11/12/2015","Older People Provider Services","Bradley Lodge Resource Centre","R4102"
"Wolverhampton City Council","http://opendatacommunities.org/id/metropolitan-district-council/wolverhampton","Af Blakemore/Blakemore Foodservice","4849812","14.2","Provisions (Resale)","130096749","11/12/2015","Older People Provider Services","Bradley Lodge Resource Centre","R4102"
"Wolverhampton City Council","http://opendatacommunities.org/id/metropolitan-district-council/wolverhampton","Af Blakemore/Blakemore Foodservice","4849851","76.63","Provisions (Resale)","130097995","11/12/2015","Older People Provider Services","Merry Hill House","R4102"
"Wolverhampton City Council","http://opendatacommunities.org/id/metropolitan-district-council/wolverhampton","Af Blakemore/Blakemore Foodservice","4849851","-76.63","Provisions (Resale)","130097995","11/12/2015","Older People Provider Services","Merry Hill House","R4102"
"Wolverhampton City Council","http://opendatacommunities.org/id/metropolitan-district-council/wolverhampton","Af Blakemore/Blakemore Foodservice","4849318","626.06","Provisions (Not for resale)","130097994","11/12/2015","Older People Provider Services","Merry Hill House","R4101"
"Wolverhampton City Council","http://opendatacommunities.org/id/metropolitan-district-council/wolverhampton","Af Blakemore/Blakemore Foodservice","4849318","-626.06","Provisions (Not for resale)","130097994","11/12/2015","Older People Provider Services","Merry Hill House","R4101"
"Wolverhampton City Council","http://opendatacommunities.org/id/metropolitan-district-council/wolverhampton","Af Blakemore/Blakemore Foodservice","4849318","151.31","Provisions (Not for resale)","130097994","11/12/2015","Older People Provider Services","Merry Hill House","R4101"
"Wolverhampton City Council","http://opendatacommunities.org/id/metropolitan-district-council/wolverhampton","Af Blakemore/Blakemore Foodservice","4849318","474.75","Provisions (Not for resale)","130097994","11/12/2015","Older People Provider Services","Merry Hill House","R4101"
"Wolverhampton City Council","http://opendatacommunities.org/id/metropolitan-district-council/wolverhampton","Af Blakemore/Blakemore Foodservice","WCC000075","898.85","Provisions (Resale)","130096802","18/12/2015","Catering","Civic Centre Catering","R4102"
"Wolverhampton City Council","http://opendatacommunities.org/id/metropolitan-district-council/wolverhampton","Af Blakemore/Blakemore Foodservice","WCC000076","601.52","Provisions (Resale)","130096803","18/12/2015","Catering","Meals on Wheels","R4102"
"Wolverhampton City Council","http://opendatacommunities.org/id/metropolitan-district-council/wolverhampton","Af Blakemore/Blakemore Foodservice","WCC000076","-601.52","Provisions (Resale)","130096803","18/12/2015","Catering","Meals on Wheels","R4102"
"Wolverhampton City Council","http://opendatacommunities.org/id/metropolitan-district-council/wolverhampton","Af Blakemore/Blakemore Foodservice","WCC000076","567.6","Provisions (Resale)","130096803","18/12/2015","Catering","Meals on Wheels","R4102"
"Wolverhampton City Council","http://opendatacommunities.org/id/metropolitan-district-council/wolverhampton","Af Blakemore/Blakemore Foodservice","WCC000076","33.92","Provisions (Resale)","130096803","18/12/2015","Catering","Meals on Wheels","R4102"
"Wolverhampton City Council","http://opendatacommunities.org/id/metropolitan-district-council/wolverhampton","Af Blakemore/Blakemore Foodservice","WCC000078","1,046.69","Provisions (Resale)","130096804","18/12/2015","Catering","Bert Williams Leisure Centre Caf�","R4102"
"Wolverhampton City Council","http://opendatacommunities.org/id/metropolitan-district-council/wolverhampton","Af Blakemore/Blakemore Foodservice","WCC000078","-1,046.69","Provisions (Resale)","130096804","18/12/2015","Catering","Bert Williams Leisure Centre Caf�","R4102"
"Wolverhampton City Council","http://opendatacommunities.org/id/metropolitan-district-council/wolverhampton","Af Blakemore/Blakemore Foodservice","WCC000078","559.42","Provisions (Resale)","130096804","18/12/2015","Catering","Bert Williams Leisure Centre Caf�","R4102"
"Wolverhampton City Council","http://opendatacommunities.org/id/metropolitan-district-council/wolverhampton","Af Blakemore/Blakemore Foodservice","WCC000078","487.27","Provisions (Resale)","130096804","18/12/2015","Catering","Bert Williams Leisure Centre Caf�","R4102"
"Wolverhampton City Council","http://opendatacommunities.org/id/metropolitan-district-council/wolverhampton","Af Blakemore/Blakemore Foodservice","4869301","36.24","Provisions (Not for resale)","130098001","18/12/2015","Learning Disability Provider","Support Plus","R4101"
"Wolverhampton City Council","http://opendatacommunities.org/id/metropolitan-district-council/wolverhampton","Af Blakemore/Blakemore Foodservice","4869301","31.44","Provisions (Not for resale)","130098001","18/12/2015","Learning Disability Provider","Support Plus","R4101"
"Wolverhampton City Council","http://opendatacommunities.org/id/metropolitan-district-council/wolverhampton","Af Blakemore/Blakemore Foodservice","WCC000074","2,118.15","Provisions (Resale)","130096801","18/12/2015","Catering","Civic Centre Catering","R4102"
"Wolverhampton City Council","http://opendatacommunities.org/id/metropolitan-district-council/wolverhampton","Af Blakemore/Blakemore Foodservice","WCC000074","-2,118.15","Provisions (Resale)","130096801","18/12/2015","Catering","Civic Centre Catering","R4102"
"Wolverhampton City Council","http://opendatacommunities.org/id/metropolitan-district-council/wolverhampton","Af Blakemore/Blakemore Foodservice","WCC000074","1,145.40","Provisions (Resale)","130096801","18/12/2015","Catering","Civic Centre Catering","R4102"
"Wolverhampton City Council","http://opendatacommunities.org/id/metropolitan-district-council/wolverhampton","Af Blakemore/Blakemore Foodservice","WCC000074","972.75","Provisions (Resale)","130096801","18/12/2015","Catering","Civic Centre Catering","R4102"
"Wolverhampton City Council","http://opendatacommunities.org/id/metropolitan-district-council/wolverhampton","Af Blakemore/Blakemore Foodservice","4864914","34","Provisions (Resale)","130100043","29/12/2015","Older People Provider Services","Bradley Lodge Resource Centre","R4102"
"Wolverhampton City Council","http://opendatacommunities.org/id/metropolitan-district-council/wolverhampton","Af Blakemore/Blakemore Foodservice","4872981","256.63","Provisions (Not for resale)","130100254","29/12/2015","Older People Provider Services","Blakenhall Resource Centre","R4101"
"Wolverhampton City Council","http://opendatacommunities.org/id/metropolitan-district-council/wolverhampton","Af Blakemore/Blakemore Foodservice","4872981","-256.63","Provisions (Not for resale)","130100254","29/12/2015","Older People Provider Services","Blakenhall Resource Centre","R4101"
"Wolverhampton City Council","http://opendatacommunities.org/id/metropolitan-district-council/wolverhampton","Af Blakemore/Blakemore Foodservice","4872981","46.82","Provisions (Not for resale)","130100254","29/12/2015","Older People Provider Services","Blakenhall Resource Centre","R4101"
"Wolverhampton City Council","http://opendatacommunities.org/id/metropolitan-district-council/wolverhampton","Af Blakemore/Blakemore Foodservice","4872981","209.81","Provisions (Not for resale)","130100254","29/12/2015","Older People Provider Services","Blakenhall Resource Centre","R4101"
"Wolverhampton City Council","http://opendatacommunities.org/id/metropolitan-district-council/wolverhampton","After Adoption","5692","14,333.00","TPP - Payments to voluntary groups","130099527","22/12/2015","Looked After Children","Adoption and Residence Team & Allowances","R5200"
"Wolverhampton City Council","http://opendatacommunities.org/id/metropolitan-district-council/wolverhampton","Agilisys Limited","1215111+1215108 balances less agreed retention","316,666.67","Computing - Purchase of Software","130100367","18/12/2015","Central Corporate Budgets","FutureWorks Programme Team","R4531"
"Wolverhampton City Council","http://opendatacommunities.org/id/metropolitan-district-council/wolverhampton","Agora Business Publications Llp","G2780767 replace","54.46","Subscriptions","130098847","09/12/2015","Learning Disability Provider","Learning Disabilities Management","R4701"
"Wolverhampton City Council","http://opendatacommunities.org/id/metropolitan-district-council/wolverhampton","T Bailey","17","510","TPP - Maintenance Contractor - General","190189340","18/12/2015","Parking Services","Cycling Schemes - Bikeability","R5720"
"Wolverhampton City Council","http://opendatacommunities.org/id/metropolitan-district-council/wolverhampton","Aidapt Bathrooms Limited","219510","19.9","Equipment - Purchase","130096442","07/12/2015","Independent Living Service","Independent Living Service","R4000"
"Wolverhampton City Council","http://opendatacommunities.org/id/metropolitan-district-council/wolverhampton","Aidapt Bathrooms Limited","222506","1,393.00","Equipment - Purchase","130099809","18/12/2015","Independent Living Service","Independent Living Service","R4000"
"Wolverhampton City Council","http://opendatacommunities.org/id/metropolitan-district-council/wolverhampton","Aidapt Bathrooms Limited","221943","597","Equipment - Purchase","130098942","11/12/2015","Independent Living Service","Independent Living Service","R4000"
"Wolverhampton City Council","http://opendatacommunities.org/id/metropolitan-district-council/wolverhampton","Aidservice Limited","89117","172.6","Equipment - Purchase","130099707","22/12/2015","Independent Living Service","Independent Living Service","R4000"
"Wolverhampton City Council","http://opendatacommunities.org/id/metropolitan-district-council/wolverhampton","Aidservice Limited","89108","595","Equipment - Purchase","130099706","22/12/2015","Independent Living Service","Independent Living Service","R4000"
"Wolverhampton City Council","http://opendatacommunities.org/id/metropolitan-district-council/wolverhampton","Aidservice Limited","89082","540","Equipment - Purchase","130098555","22/12/2015","Independent Living Service","Independent Living Service","R4000"
"Wolverhampton City Council","http://opendatacommunities.org/id/metropolitan-district-council/wolverhampton","Aidservice Limited","89083","540","Equipment - Purchase","130098556","22/12/2015","Independent Living Service","Independent Living Service","R4000"
"Wolverhampton City Council","http://opendatacommunities.org/id/metropolitan-district-council/wolverhampton","Air Methods Limited","PSI66109","142","Equipment - R & M","190190758","29/12/2015","Fleet Services","Fleet Management","R4003"
"Wolverhampton City Council","http://opendatacommunities.org/id/metropolitan-district-council/wolverhampton","Air Methods Limited","PSI66109","560.51","Equipment - R & M","190190758","29/12/2015","Fleet Services","Fleet Management","R4003"
"Wolverhampton City Council","http://opendatacommunities.org/id/metropolitan-district-council/wolverhampton","Air Methods Limited","PSI66109","93","Equipment - R & M","190190758","29/12/2015","Fleet Services","Fleet Management","R4003"
"Wolverhampton City Council","http://opendatacommunities.org/id/metropolitan-district-council/wolverhampton","Airport Express West Midlands Limited","1246","1,470.00","Client Transport","130098149","09/12/2015","School Planning & Resources","Secondary- Transport","R3042"
"Wolverhampton City Council","http://opendatacommunities.org/id/metropolitan-district-council/wolverhampton","Airport Express West Midlands Limited","1245","1,680.00","Client Transport","130098148","09/12/2015","School Planning & Resources","Special - Transport","R3042"
"Wolverhampton City Council","http://opendatacommunities.org/id/metropolitan-district-council/wolverhampton","Airport Express West Midlands Limited","1244","1,000.00","Client Transport","130098147","09/12/2015","School Planning & Resources","Special - Transport","R3042"
"Wolverhampton City Council","http://opendatacommunities.org/id/metropolitan-district-council/wolverhampton","Airport Express West Midlands Limited","1260","500","Client Transport","130100858","29/12/2015","School Planning & Resources","Special - Transport","R3042"
"Wolverhampton City Council","http://opendatacommunities.org/id/metropolitan-district-council/wolverhampton","Airport Express West Midlands Limited","1262","980","Client Transport","130100860","29/12/2015","School Planning & Resources","Secondary- Transport","R3042"
"Wolverhampton City Council","http://opendatacommunities.org/id/metropolitan-district-council/wolverhampton","Airport Express West Midlands Limited","1261","880","Client Transport","130100859","29/12/2015","School Planning & Resources","Special - Transport","R3042"
"Wolverhampton City Council","http://opendatacommunities.org/id/metropolitan-district-council/wolverhampton","Airport-Link","BDW007","1,855.88","Client Transport","130098285","09/12/2015","School Planning & Resources","Special - Transport","R3042"
"Wolverhampton City Council","http://opendatacommunities.org/id/metropolitan-district-council/wolverhampton","Airport-Link","BDW006","1,805.00","Client Transport","130098284","09/12/2015","School Planning & Resources","Special - Transport","R3042"
"Wolverhampton City Council","http://opendatacommunities.org/id/metropolitan-district-council/wolverhampton","Aldersley Church Early Learning Committee","NEF Aut 2015 Inst 2","4,681.07","TPP - Private Nursery Education Funding","190188598","18/12/2015","Childrens Centres & Early Years","Early Years Non Maintained Schools","R5035"
"Wolverhampton City Council","http://opendatacommunities.org/id/metropolitan-district-council/wolverhampton","Aldersley Church Early Learning Committee","T42 Aut 2015 Inst 2","1,012.50","Grant Payments","190187978","16/12/2015","Childrens Centres & Early Years","2 Year Olds Pilot - Early Learning & Childcare","R4700"
"Wolverhampton City Council","http://opendatacommunities.org/id/metropolitan-district-council/wolverhampton","Aldersley Church Early Learning Committee","Aldersley PG Resources","9,913.31","Grant Payments","190190372","29/12/2015","Childrens Centres & Early Years","2 Year Olds Pilot - Early Learning & Childcare","R4700"
"Wolverhampton City Council","http://opendatacommunities.org/id/metropolitan-district-council/wolverhampton","Aldridge Trimming","20527","90","Equipment - Purchase","190190228","22/12/2015","Fleet Services","Fleet Management","R4000"
"Wolverhampton City Council","http://opendatacommunities.org/id/metropolitan-district-council/wolverhampton","Alemba Limited","INV00000142","23,141.54","Computing - Maint Agreements","130097535","09/12/2015","ICTS","Strategic ICTS (ICT Service Budget)","R4534"
"Wolverhampton City Council","http://opendatacommunities.org/id/metropolitan-district-council/wolverhampton","Alice Whyley Creative Wonderland","HS1.0","1,520.00","Services - Professional Fees","130098292","09/12/2015","Mental Health Commissioning","Head Start Wolverhampton","R4400"
"Wolverhampton City Council","http://opendatacommunities.org/id/metropolitan-district-council/wolverhampton","Alice Whyley Creative Wonderland","16","1,500.00","Services - Consultants","130098161","29/12/2015","School Planning & Resources","Technical Support","R4404"
"Wolverhampton City Council","http://opendatacommunities.org/id/metropolitan-district-council/wolverhampton","All Saints Action Network Limited","EYPP Autumn 2015","333.9","TPP - Private Nursery Education Funding","190190060","22/12/2015","Childrens Centres & Early Years","Early Years Non Maintained Schools","R5035"
"Wolverhampton City Council","http://opendatacommunities.org/id/metropolitan-district-council/wolverhampton","All Saints Action Network Limited","102733","573","Room Hire","130098141","09/12/2015","Commissioning","Public Health Commissioning","R2201"
"Wolverhampton City Council","http://opendatacommunities.org/id/metropolitan-district-council/wolverhampton","All Saints Action Network Limited","102734","432","Services - Professional Fees","130098142","09/12/2015","Mental Health Commissioning","Head Start Wolverhampton","R4400"
"Wolverhampton City Council","http://opendatacommunities.org/id/metropolitan-district-council/wolverhampton","All Saints Action Network Limited","NEF Aut 2015 Inst 2","18,682.24","TPP - Private Nursery Education Funding","190188598","18/12/2015","Childrens Centres & Early Years","Early Years Non Maintained Schools","R5035"
"Wolverhampton City Council","http://opendatacommunities.org/id/metropolitan-district-council/wolverhampton","All Saints Action Network Limited","T42 Aut 2015 Inst 2","20,835.00","Grant Payments","190187978","16/12/2015","Childrens Centres & Early Years","2 Year Olds Pilot - Early Learning & Childcare","R4700"
"Wolverhampton City Council","http://opendatacommunities.org/id/metropolitan-district-council/wolverhampton","Allstar Business Solutions Limited","E2005759477","87.76","Petrol","190184775","09/12/2015","Fleet Services","Fleet Management","R3000"
"Wolverhampton City Council","http://opendatacommunities.org/id/metropolitan-district-council/wolverhampton","Allstar Business Solutions Limited","E2005756599","443.12","Petrol","190184774","09/12/2015","Fleet Services","Fleet Management","R3000"
"Wolverhampton City Council","http://opendatacommunities.org/id/metropolitan-district-council/wolverhampton","Allstar Business Solutions Limited","E2005831272","138.69","Petrol","190190757","29/12/2015","Fleet Services","Fleet Management","R3000"
"Wolverhampton City Council","http://opendatacommunities.org/id/metropolitan-district-council/wolverhampton","Alphatec 2000 Limited","7809","448.62","Equipment - R & M","130097798","09/12/2015","ICTS","Document Centre - General","R4003"
"Wolverhampton City Council","http://opendatacommunities.org/id/metropolitan-district-council/wolverhampton","Andrews Creative Services","AC2015-0105","100","Hospitality","130097339","07/12/2015","Democracy","Mayoral Expenses","R4612"
"Wolverhampton City Council","http://opendatacommunities.org/id/metropolitan-district-council/wolverhampton","Andrews Creative Services","AC2015 - 0106","100","Equipment - Hire","130098566","16/12/2015","Engineering & Civic Centre","Civic Centre","R4001"
"Wolverhampton City Council","http://opendatacommunities.org/id/metropolitan-district-council/wolverhampton","Angel Springs Limited","2888786","31.28","Provisions (Not for resale)","130099811","22/12/2015","Childrens Centres & Early Years","Children�s Village Children Centre","R4101"
"Wolverhampton City Council","http://opendatacommunities.org/id/metropolitan-district-council/wolverhampton","Angel Springs Limited","2888788","89.52","Provisions (Not for resale)","130098732","22/12/2015","Fleet Services","Fleet Management","R4101"
"Wolverhampton City Council","http://opendatacommunities.org/id/metropolitan-district-council/wolverhampton","Angel Springs Limited","2888783","15.64","Provisions (Not for resale)","130098731","22/12/2015","Cleaning & Caretaking Service","Culwell Street Depot","R4101"
"Wolverhampton City Council","http://opendatacommunities.org/id/metropolitan-district-council/wolverhampton","Angel Springs Limited","2888747","10.3","Provisions (Not for resale)","130098730","22/12/2015","Housing Revenue Account - Communities","Carelink","R4101"
"Wolverhampton City Council","http://opendatacommunities.org/id/metropolitan-district-council/wolverhampton","Angel Springs Limited","2888750","25.92","Provisions (Not for resale)","130098483","22/12/2015","Fleet Services","Passenger Transport - General","R4101"
"Wolverhampton City Council","http://opendatacommunities.org/id/metropolitan-district-council/wolverhampton","Angel Springs Limited","2888746","12.96","Provisions (Not for resale)","130099453","22/12/2015","Mental Health Provider","46a, Second Avenue, Low Hill","R4101"
"Wolverhampton City Council","http://opendatacommunities.org/id/metropolitan-district-council/wolverhampton","Angel Springs Limited","2782291","12.96","Provisions (Not for resale)","130100701","22/12/2015","School Planning & Resources","Education Data Services","R4101"
"Wolverhampton City Council","http://opendatacommunities.org/id/metropolitan-district-council/wolverhampton","Angel Springs Limited","2747574","12.96","Provisions (Not for resale)","130098725","09/12/2015","Environmental Maintenance","Arbor Scheme","R4101"
"Wolverhampton City Council","http://opendatacommunities.org/id/metropolitan-district-council/wolverhampton","Angel Springs Limited","2747573","10.3","Provisions (Not for resale)","130098724","16/12/2015","Environmental Maintenance","Arbor Scheme","R4101"
"Wolverhampton City Council","http://opendatacommunities.org/id/metropolitan-district-council/wolverhampton","Angel Springs Limited","2645677","-24","Provisions (Not for resale)","130098722","16/12/2015","Environmental Maintenance","Arbor Scheme","R4101"
"Wolverhampton City Council","http://opendatacommunities.org/id/metropolitan-district-council/wolverhampton","Angel Springs Limited","2781706","6.48","Provisions (Not for resale)","130098726","16/12/2015","Environmental Maintenance","Arbor Scheme","R4101"
"Wolverhampton City Council","http://opendatacommunities.org/id/metropolitan-district-council/wolverhampton","Angel Springs Limited","2817001","9.72","Provisions (Not for resale)","130098728","16/12/2015","Environmental Maintenance","Arbor Scheme","R4101"
"Wolverhampton City Council","http://opendatacommunities.org/id/metropolitan-district-council/wolverhampton","Angel Springs Limited","2817000","10.3","Provisions (Not for resale)","130098727","16/12/2015","Environmental Maintenance","Arbor Scheme","R4101"
"Wolverhampton City Council","http://opendatacommunities.org/id/metropolitan-district-council/wolverhampton","Angel Springs Limited","2852708","12.96","Provisions (Not for resale)","130098729","16/12/2015","Environmental Maintenance","Arbor Scheme","R4101"
"Wolverhampton City Council","http://opendatacommunities.org/id/metropolitan-district-council/wolverhampton","Angel Springs Limited","2853329","167.8","Provisions (Not for resale)","130100905","29/12/2015","Fleet Services","Fleet Management","R4101"
"Wolverhampton City Council","http://opendatacommunities.org/id/metropolitan-district-council/wolverhampton","Angel Springs Limited","2817625","89.52","Provisions (Not for resale)","130100902","29/12/2015","Fleet Services","Fleet Management","R4101"
"Wolverhampton City Council","http://opendatacommunities.org/id/metropolitan-district-council/wolverhampton","Angel Springs Limited","2888752","43.86","Provisions (Not for resale)","130101060","29/12/2015","School Planning & Resources","Education Data Services","R4101"
"Wolverhampton City Council","http://opendatacommunities.org/id/metropolitan-district-council/wolverhampton","Angel Springs Limited","2817585","16.2","Provisions (Not for resale)","130100901","29/12/2015","Fleet Services","Passenger Transport - General","R4101"
"Wolverhampton City Council","http://opendatacommunities.org/id/metropolitan-district-council/wolverhampton","Anglia Dna Services Limited","38042","224.5","Services - Professional Fees","130098213","09/12/2015","Children in Need & Child Protection","Head of Service - CINCP","R4400"
"Wolverhampton City Council","http://opendatacommunities.org/id/metropolitan-district-council/wolverhampton","Ann Arbor Publishers Limited","2556","-230","Equipment - Purchase","130095587","11/12/2015","Social Inclusion & Play Service","MAST - Central Team","R4000"
"Wolverhampton City Council","http://opendatacommunities.org/id/metropolitan-district-council/wolverhampton","Ann Arbor Publishers Limited","236635","230","Equipment - Purchase","130088735","11/12/2015","Social Inclusion & Play Service","MAST - Central Team","R4000"
"Wolverhampton City Council","http://opendatacommunities.org/id/metropolitan-district-council/wolverhampton","Anthony Hammond","729","300","Services - Professional Fees","130100491","29/12/2015","Environmental Maintenance","Northicote Farm","R4400"
"Wolverhampton City Council","http://opendatacommunities.org/id/metropolitan-district-council/wolverhampton","Apcoa Parking (UK) Limited","224888","46,804.51","TPP - Traffic Management","130098464","22/12/2015","Parking Services","Parking Enforcement","R5050"
"Wolverhampton City Council","http://opendatacommunities.org/id/metropolitan-district-council/wolverhampton","Apetito Limited","9001579625","1,492.13","Provisions (Resale)","130096938","07/12/2015","Catering","Meals on Wheels","R4102"
"Wolverhampton City Council","http://opendatacommunities.org/id/metropolitan-district-council/wolverhampton","Apetito Limited","9001591037","1,285.40","Provisions (Resale)","130097510","22/12/2015","Catering","Meals on Wheels","R4102"
"Wolverhampton City Council","http://opendatacommunities.org/id/metropolitan-district-council/wolverhampton","Apetito Limited","9001594953","1,060.39","Provisions (Resale)","130098042","22/12/2015","Catering","Meals on Wheels","R4102"
"Wolverhampton City Council","http://opendatacommunities.org/id/metropolitan-district-council/wolverhampton","Apetito Limited","9001577264","1,456.44","Provisions (Resale)","130094755","03/12/2015","Catering","Meals on Wheels","R4102"
"Wolverhampton City Council","http://opendatacommunities.org/id/metropolitan-district-council/wolverhampton","Apetito Limited","9001535870","1,435.98","Provisions (Resale)","130096935","03/12/2015","Catering","Meals on Wheels","R4102"
"Wolverhampton City Council","http://opendatacommunities.org/id/metropolitan-district-council/wolverhampton","Apetito Limited","9001558573","1,401.89","Provisions (Resale)","130096937","03/12/2015","Catering","Meals on Wheels","R4102"
"Wolverhampton City Council","http://opendatacommunities.org/id/metropolitan-district-council/wolverhampton","Apetito Limited","9001549606","766.13","Provisions (Resale)","130096936","03/12/2015","Catering","Meals on Wheels","R4102"
"Wolverhampton City Council","http://opendatacommunities.org/id/metropolitan-district-council/wolverhampton","Apetito Limited","9001582771","1,259.08","Provisions (Resale)","130095824","09/12/2015","Catering","Meals on Wheels","R4102"
"Wolverhampton City Council","http://opendatacommunities.org/id/metropolitan-district-council/wolverhampton","Apetito Limited","9001586144","1,318.85","Provisions (Resale)","130096628","16/12/2015","Catering","Meals on Wheels","R4102"
"Wolverhampton City Council","http://opendatacommunities.org/id/metropolitan-district-council/wolverhampton","Apetito Limited","9001588203","1,167.87","Provisions (Resale)","130096939","16/12/2015","Catering","Meals on Wheels","R4102"
"Wolverhampton City Council","http://opendatacommunities.org/id/metropolitan-district-council/wolverhampton","Apetito Limited","9001589155","21.84","Provisions (Resale)","130097176","18/12/2015","Catering","Meals on Wheels","R4102"
"Wolverhampton City Council","http://opendatacommunities.org/id/metropolitan-district-council/wolverhampton","Apetito Limited","9001589154","1,137.79","Provisions (Resale)","130097175","18/12/2015","Catering","Meals on Wheels","R4102"
"Wolverhampton City Council","http://opendatacommunities.org/id/metropolitan-district-council/wolverhampton","Aquajoy Bathlifts Limited","915858","468","Equipment - R & M","130096406","11/12/2015","Independent Living Service","Independent Living Service","R4003"
"Wolverhampton City Council","http://opendatacommunities.org/id/metropolitan-district-council/wolverhampton","Aquajoy Bathlifts Limited","915858","10","Equipment - R & M","130096406","11/12/2015","Independent Living Service","Independent Living Service","R4003"
"Wolverhampton City Council","http://opendatacommunities.org/id/metropolitan-district-council/wolverhampton","Archive Servs Data&Records Mngt Limited","5760","28.5","Storage","130099774","16/12/2015","Childrens Centres & Early Years","Children�s Village Children Centre","R4910"
"Wolverhampton City Council","http://opendatacommunities.org/id/metropolitan-district-council/wolverhampton","Archive Servs Data&Records Mngt Limited","5730","66.06","Storage","130098107","16/12/2015","Looked After Children","Head of Service - LAC","R4910"
"Wolverhampton City Council","http://opendatacommunities.org/id/metropolitan-district-council/wolverhampton","Argus Fire Protection Co.Limited","34316","450","Equipment - R & M","130098493","18/12/2015","Engineering & Civic Centre","Civic Centre","R4003"
"Wolverhampton City Council","http://opendatacommunities.org/id/metropolitan-district-council/wolverhampton","Arjohuntleigh UK","40910","112","Equipment - Purchase","130097781","22/12/2015","Independent Living Service","Independent Living Service","R4000"
"Wolverhampton City Council","http://opendatacommunities.org/id/metropolitan-district-council/wolverhampton","Arnold Clark Finance Limited","HI1923370-","147","Hire of Vehicles","190183457","07/12/2015","Fleet Services","Fleet Management","R3200"
"Wolverhampton City Council","http://opendatacommunities.org/id/metropolitan-district-council/wolverhampton","Arnold Clark Finance Limited","HI1918971","147","Hire of Vehicles","190182880","03/12/2015","Fleet Services","Fleet Management","R3200"
"Wolverhampton City Council","http://opendatacommunities.org/id/metropolitan-district-council/wolverhampton","Arnold Clark Finance Limited","HI1918972","147","Hire of Vehicles","190182881","03/12/2015","Fleet Services","Fleet Management","R3200"
"Wolverhampton City Council","http://opendatacommunities.org/id/metropolitan-district-council/wolverhampton","Arnold Clark Finance Limited","HI1918973","147","Hire of Vehicles","190182882","03/12/2015","Fleet Services","Fleet Management","R3200"
"Wolverhampton City Council","http://opendatacommunities.org/id/metropolitan-district-council/wolverhampton","Arnold Clark Finance Limited","HI1918974","147","Hire of Vehicles","190182883","03/12/2015","Fleet Services","Fleet Management","R3200"
"Wolverhampton City Council","http://opendatacommunities.org/id/metropolitan-district-council/wolverhampton","Arnold Clark Finance Limited","HI1918975","147","Hire of Vehicles","190182884","03/12/2015","Fleet Services","Fleet Management","R3200"
"Wolverhampton City Council","http://opendatacommunities.org/id/metropolitan-district-council/wolverhampton","Arnold Clark Finance Limited","HI1918976","147","Hire of Vehicles","190182885","03/12/2015","Fleet Services","Fleet Management","R3200"
"Wolverhampton City Council","http://opendatacommunities.org/id/metropolitan-district-council/wolverhampton","Arnold Clark Finance Limited","HI1923366","147","Hire of Vehicles","190182886","03/12/2015","Fleet Services","Fleet Management","R3200"
"Wolverhampton City Council","http://opendatacommunities.org/id/metropolitan-district-council/wolverhampton","Arnold Clark Finance Limited","HI1923367","147","Hire of Vehicles","190182887","03/12/2015","Fleet Services","Fleet Management","R3200"
"Wolverhampton City Council","http://opendatacommunities.org/id/metropolitan-district-council/wolverhampton","Arnold Clark Finance Limited","HI1923368","147","Hire of Vehicles","190182888","03/12/2015","Fleet Services","Fleet Management","R3200"
"Wolverhampton City Council","http://opendatacommunities.org/id/metropolitan-district-council/wolverhampton","Arnold Clark Finance Limited","HI1923369","147","Hire of Vehicles","190182889","03/12/2015","Fleet Services","Fleet Management","R3200"
"Wolverhampton City Council","http://opendatacommunities.org/id/metropolitan-district-council/wolverhampton","Arnold Clark Finance Limited","HI1924854","147","Hire of Vehicles","190182891","03/12/2015","Fleet Services","Fleet Management","R3200"
"Wolverhampton City Council","http://opendatacommunities.org/id/metropolitan-district-council/wolverhampton","Arnold Clark Finance Limited","HI1924855","147","Hire of Vehicles","190182892","03/12/2015","Fleet Services","Fleet Management","R3200"
"Wolverhampton City Council","http://opendatacommunities.org/id/metropolitan-district-council/wolverhampton","Arnold Clark Finance Limited","HI1924856","147","Hire of Vehicles","190182893","03/12/2015","Fleet Services","Fleet Management","R3200"
"Wolverhampton City Council","http://opendatacommunities.org/id/metropolitan-district-council/wolverhampton","Arnold Clark Finance Limited","HI1924857","147","Hire of Vehicles","190182894","03/12/2015","Fleet Services","Fleet Management","R3200"
"Wolverhampton City Council","http://opendatacommunities.org/id/metropolitan-district-council/wolverhampton","Arnold Clark Finance Limited","HI1924858","147","Hire of Vehicles","190182895","03/12/2015","Fleet Services","Fleet Management","R3200"
"Wolverhampton City Council","http://opendatacommunities.org/id/metropolitan-district-council/wolverhampton","Arnold Clark Finance Limited","HI1923370","147","Hire of Vehicles","190182890","03/12/2015","Fleet Services","Fleet Management","R3200"
"Wolverhampton City Council","http://opendatacommunities.org/id/metropolitan-district-council/wolverhampton","Arnold Clark Finance Limited","HI1923370","147","Hire of Vehicles","190182890","03/12/2015","Fleet Services","Fleet Management","R3200"
"Wolverhampton City Council","http://opendatacommunities.org/id/metropolitan-district-council/wolverhampton","Arnold Clark Finance Limited","HI1927609","147","Hire of Vehicles","190182898","03/12/2015","Fleet Services","Fleet Management","R3200"
"Wolverhampton City Council","http://opendatacommunities.org/id/metropolitan-district-council/wolverhampton","Arnold Clark Finance Limited","HI1924859","147","Hire of Vehicles","190182896","03/12/2015","Fleet Services","Fleet Management","R3200"
"Wolverhampton City Council","http://opendatacommunities.org/id/metropolitan-district-council/wolverhampton","Arnold Clark Finance Limited","HI1927608","147","Hire of Vehicles","190182897","03/12/2015","Fleet Services","Fleet Management","R3200"
"Wolverhampton City Council","http://opendatacommunities.org/id/metropolitan-district-council/wolverhampton","Arnold Clark Finance Limited","HI1927614","147","Hire of Vehicles","190182899","03/12/2015","Fleet Services","Fleet Management","R3200"
"Wolverhampton City Council","http://opendatacommunities.org/id/metropolitan-district-council/wolverhampton","Arnold Clark Finance Limited","HI1927617","147","Hire of Vehicles","190182900","03/12/2015","Fleet Services","Fleet Management","R3200"
"Wolverhampton City Council","http://opendatacommunities.org/id/metropolitan-district-council/wolverhampton","Arnold Clark Finance Limited","HI1929417","147","Hire of Vehicles","190182901","03/12/2015","Fleet Services","Fleet Management","R3200"
"Wolverhampton City Council","http://opendatacommunities.org/id/metropolitan-district-council/wolverhampton","Arnold Clark Finance Limited","HI1929418","147","Hire of Vehicles","190182902","03/12/2015","Fleet Services","Fleet Management","R3200"
"Wolverhampton City Council","http://opendatacommunities.org/id/metropolitan-district-council/wolverhampton","Arnold Clark Finance Limited","HI1929419","147","Hire of Vehicles","190182903","03/12/2015","Fleet Services","Fleet Management","R3200"
"Wolverhampton City Council","http://opendatacommunities.org/id/metropolitan-district-council/wolverhampton","Arnold Clark Finance Limited","HI1929420","147","Hire of Vehicles","190182904","03/12/2015","Fleet Services","Fleet Management","R3200"
"Wolverhampton City Council","http://opendatacommunities.org/id/metropolitan-district-council/wolverhampton","Arnold Clark Finance Limited","HI1929421","147","Hire of Vehicles","190182905","03/12/2015","Fleet Services","Fleet Management","R3200"
"Wolverhampton City Council","http://opendatacommunities.org/id/metropolitan-district-council/wolverhampton","Arnold Clark Finance Limited","HI1929422","147","Hire of Vehicles","190182906","03/12/2015","Fleet Services","Fleet Management","R3200"
"Wolverhampton City Council","http://opendatacommunities.org/id/metropolitan-district-council/wolverhampton","Arnold Clark Finance Limited","HI1929423","147","Hire of Vehicles","190182907","03/12/2015","Fleet Services","Fleet Management","R3200"
"Wolverhampton City Council","http://opendatacommunities.org/id/metropolitan-district-council/wolverhampton","Arnold Clark Finance Limited","HI1929424","147","Hire of Vehicles","190182908","03/12/2015","Fleet Services","Fleet Management","R3200"
"Wolverhampton City Council","http://opendatacommunities.org/id/metropolitan-district-council/wolverhampton","Arnold Clark Finance Limited","HI1929425","40","Hire of Vehicles","190182909","03/12/2015","Fleet Services","Fleet Management","R3200"
"Wolverhampton City Council","http://opendatacommunities.org/id/metropolitan-district-council/wolverhampton","Arnold Clark Finance Limited","HI1938759","40","Hire of Vehicles","190187834","16/12/2015","Fleet Services","Fleet Management","R3200"
"Wolverhampton City Council","http://opendatacommunities.org/id/metropolitan-district-council/wolverhampton","Arnold Clark Finance Limited","HI1938753","147","Hire of Vehicles","190187828","16/12/2015","Fleet Services","Fleet Management","R3200"
"Wolverhampton City Council","http://opendatacommunities.org/id/metropolitan-district-council/wolverhampton","Arnold Clark Finance Limited","HI19387532","147","Hire of Vehicles","190187829","16/12/2015","Fleet Services","Fleet Management","R3200"
"Wolverhampton City Council","http://opendatacommunities.org/id/metropolitan-district-council/wolverhampton","Arnold Clark Finance Limited","HI1938756","147","Hire of Vehicles","190187831","16/12/2015","Fleet Services","Fleet Management","R3200"
"Wolverhampton City Council","http://opendatacommunities.org/id/metropolitan-district-council/wolverhampton","Arnold Clark Finance Limited","HI1938755","147","Hire of Vehicles","190187830","16/12/2015","Fleet Services","Fleet Management","R3200"
"Wolverhampton City Council","http://opendatacommunities.org/id/metropolitan-district-council/wolverhampton","Arnold Clark Finance Limited","HI1938757","147","Hire of Vehicles","190187832","16/12/2015","Fleet Services","Fleet Management","R3200"
"Wolverhampton City Council","http://opendatacommunities.org/id/metropolitan-district-council/wolverhampton","Arnold Clark Finance Limited","HI1938761","147","Hire of Vehicles","190187835","16/12/2015","Fleet Services","Fleet Management","R3200"
"Wolverhampton City Council","http://opendatacommunities.org/id/metropolitan-district-council/wolverhampton","Arnold Clark Finance Limited","HI1938763","147","Hire of Vehicles","190187837","16/12/2015","Fleet Services","Fleet Management","R3200"
"Wolverhampton City Council","http://opendatacommunities.org/id/metropolitan-district-council/wolverhampton","Arnold Clark Finance Limited","HI1938765","147","Hire of Vehicles","190187839","16/12/2015","Fleet Services","Fleet Management","R3200"
"Wolverhampton City Council","http://opendatacommunities.org/id/metropolitan-district-council/wolverhampton","Arnold Clark Finance Limited","HI1938764","147","Hire of Vehicles","190187838","16/12/2015","Fleet Services","Fleet Management","R3200"
"Wolverhampton City Council","http://opendatacommunities.org/id/metropolitan-district-council/wolverhampton","Arnold Clark Finance Limited","HI1938766","147","Hire of Vehicles","190187840","16/12/2015","Fleet Services","Fleet Management","R3200"
"Wolverhampton City Council","http://opendatacommunities.org/id/metropolitan-district-council/wolverhampton","Arnold Clark Finance Limited","HI1940730","147","Hire of Vehicles","190187841","16/12/2015","Fleet Services","Fleet Management","R3200"
"Wolverhampton City Council","http://opendatacommunities.org/id/metropolitan-district-council/wolverhampton","Arnold Clark Finance Limited","HI1940732","147","Hire of Vehicles","190187843","16/12/2015","Fleet Services","Fleet Management","R3200"
"Wolverhampton City Council","http://opendatacommunities.org/id/metropolitan-district-council/wolverhampton","Arnold Clark Finance Limited","HI1940731","147","Hire of Vehicles","190187842","16/12/2015","Fleet Services","Fleet Management","R3200"
"Wolverhampton City Council","http://opendatacommunities.org/id/metropolitan-district-council/wolverhampton","Arnold Clark Finance Limited","HI1940733","147","Hire of Vehicles","190187844","16/12/2015","Fleet Services","Fleet Management","R3200"
"Wolverhampton City Council","http://opendatacommunities.org/id/metropolitan-district-council/wolverhampton","Arnold Clark Finance Limited","HI1940734","147","Hire of Vehicles","190187845","16/12/2015","Fleet Services","Fleet Management","R3200"
"Wolverhampton City Council","http://opendatacommunities.org/id/metropolitan-district-council/wolverhampton","Arnold Clark Finance Limited","HI1940735","147","Hire of Vehicles","190187846","16/12/2015","Fleet Services","Fleet Management","R3200"
"Wolverhampton City Council","http://opendatacommunities.org/id/metropolitan-district-council/wolverhampton","Arnold Clark Finance Limited","HI1938758","147","Hire of Vehicles","190187833","16/12/2015","Fleet Services","Fleet Management","R3200"
"Wolverhampton City Council","http://opendatacommunities.org/id/metropolitan-district-council/wolverhampton","Arnold Clark Finance Limited","HI1938762","147","Hire of Vehicles","190187836","16/12/2015","Fleet Services","Fleet Management","R3200"
"Wolverhampton City Council","http://opendatacommunities.org/id/metropolitan-district-council/wolverhampton","Arthur Brett (Catering) Limited","ID811531","14.33","Provisions (Resale)","130097201","03/12/2015","Culture Arts & Heritage","Bantock - Tea Rooms","R4102"
"Wolverhampton City Council","http://opendatacommunities.org/id/metropolitan-district-council/wolverhampton","Arthur Brett (Catering) Limited","ID810932","23.81","Provisions (Resale)","130096952","03/12/2015","Leisure Services","WV Active Catering","R4102"
"Wolverhampton City Council","http://opendatacommunities.org/id/metropolitan-district-council/wolverhampton","Arthur Brett (Catering) Limited","ID808921","41.19","Provisions (Resale)","130096950","03/12/2015","Older People Provider Services","Nelson Mandela House","R4102"
"Wolverhampton City Council","http://opendatacommunities.org/id/metropolitan-district-council/wolverhampton","Arthur Brett (Catering) Limited","ID807240","49.91","Provisions (Resale)","130096786","03/12/2015","Older People Provider Services","Nelson Mandela House","R4102"
"Wolverhampton City Council","http://opendatacommunities.org/id/metropolitan-district-council/wolverhampton","Arthur Brett (Catering) Limited","ID807734","4.95","Provisions (Resale)","130096348","03/12/2015","Learning Disability Provider","Duke Street Bungalows","R4102"
"Wolverhampton City Council","http://opendatacommunities.org/id/metropolitan-district-council/wolverhampton","Arthur Brett (Catering) Limited","ID803421","10.57","Provisions (Resale)","130094770","03/12/2015","Learning Disability Provider","Duke Street Bungalows","R4102"
"Wolverhampton City Council","http://opendatacommunities.org/id/metropolitan-district-council/wolverhampton","Arthur Brett (Catering) Limited","ID807729","18.38","Provisions (Resale)","130096346","03/12/2015","Learning Disability Provider","Duke Street Bungalows","R4102"
"Wolverhampton City Council","http://opendatacommunities.org/id/metropolitan-district-council/wolverhampton","Arthur Brett (Catering) Limited","ID807732","21.57","Provisions (Resale)","130096347","03/12/2015","Learning Disability Provider","Duke Street Bungalows","R4102"
"Wolverhampton City Council","http://opendatacommunities.org/id/metropolitan-district-council/wolverhampton","Arthur Brett (Catering) Limited","ID808266","5.3","Provisions (Resale)","130096635","03/12/2015","Learning Disability Provider","Duke Street Bungalows","R4102"
"Wolverhampton City Council","http://opendatacommunities.org/id/metropolitan-district-council/wolverhampton","Arthur Brett (Catering) Limited","ID810953","81.44","Provisions (Resale)","130097199","03/12/2015","Culture Arts & Heritage","Art Gallery Tea Room","R4102"
"Wolverhampton City Council","http://opendatacommunities.org/id/metropolitan-district-council/wolverhampton","Arthur Brett (Catering) Limited","ID810946","116.49","Provisions (Resale)","130096953","03/12/2015","Culture Arts & Heritage","Bantock - Tea Rooms","R4102"
"Wolverhampton City Council","http://opendatacommunities.org/id/metropolitan-district-council/wolverhampton","Arthur Brett (Catering) Limited","ID811077","10.37","Provisions (Resale)","130096954","03/12/2015","Culture Arts & Heritage","Bantock - Tea Rooms","R4102"
"Wolverhampton City Council","http://opendatacommunities.org/id/metropolitan-district-council/wolverhampton","Arthur Brett (Catering) Limited","ID811023","50","Provisions (Resale)","130097200","07/12/2015","Older People Provider Services","Woden Resource Centre","R4102"
"Wolverhampton City Council","http://opendatacommunities.org/id/metropolitan-district-council/wolverhampton","Arthur Brett (Catering) Limited","ID811844","71.23","Provisions (Resale)","130097346","07/12/2015","Culture Arts & Heritage","Bantock - Tea Rooms","R4102"
"Wolverhampton City Council","http://opendatacommunities.org/id/metropolitan-district-council/wolverhampton","Arthur Brett (Catering) Limited","ID811888","1.58","Provisions (Resale)","130097347","07/12/2015","Culture Arts & Heritage","Art Gallery Tea Room","R4102"
"Wolverhampton City Council","http://opendatacommunities.org/id/metropolitan-district-council/wolverhampton","Arthur Brett (Catering) Limited","ID812204","82.93","Provisions (Resale)","130097534","07/12/2015","Culture Arts & Heritage","Art Gallery Tea Room","R4102"
"Wolverhampton City Council","http://opendatacommunities.org/id/metropolitan-district-council/wolverhampton","Arthur Brett (Catering) Limited","ID811024","35.77","Provisions (Resale)","130097531","07/12/2015","Older People Provider Services","Woden Resource Centre","R4102"
"Wolverhampton City Council","http://opendatacommunities.org/id/metropolitan-district-council/wolverhampton","Arthur Brett (Catering) Limited","ID811320","12.51","Provisions (Resale)","130097533","07/12/2015","Learning Disability Provider","Duke Street Bungalows","R4102"
"Wolverhampton City Council","http://opendatacommunities.org/id/metropolitan-district-council/wolverhampton","Arthur Brett (Catering) Limited","ID808969","21.57","Provisions (Resale)","130097197","07/12/2015","Learning Disability Provider","Duke Street Bungalows","R4102"
"Wolverhampton City Council","http://opendatacommunities.org/id/metropolitan-district-council/wolverhampton","Arthur Brett (Catering) Limited","ID810156","20.04","Provisions (Resale)","130097344","07/12/2015","Learning Disability Provider","Duke Street Bungalows","R4102"
"Wolverhampton City Council","http://opendatacommunities.org/id/metropolitan-district-council/wolverhampton","Arthur Brett (Catering) Limited","ID808971","4.1","Provisions (Resale)","130097198","07/12/2015","Learning Disability Provider","Duke Street Bungalows","R4102"
"Wolverhampton City Council","http://opendatacommunities.org/id/metropolitan-district-council/wolverhampton","Arthur Brett (Catering) Limited","ID811405","34.18","Provisions (Resale)","130097345","07/12/2015","Older People Provider Services","Blakenhall Resource Centre","R4102"
"Wolverhampton City Council","http://opendatacommunities.org/id/metropolitan-district-council/wolverhampton","Arthur Brett (Catering) Limited","ID808953","48.6","Provisions (Resale)","130096951","22/12/2015","Older People Provider Services","Bradley Lodge Resource Centre","R4102"
"Wolverhampton City Council","http://opendatacommunities.org/id/metropolitan-district-council/wolverhampton","Arthur Brett (Catering) Limited","ID818052","17.6","Provisions (Resale)","130100342","22/12/2015","Culture Arts & Heritage","Bantock - Tea Rooms","R4102"
"Wolverhampton City Council","http://opendatacommunities.org/id/metropolitan-district-council/wolverhampton","Arthur Brett (Catering) Limited","ID813636","47.13","Provisions (Resale)","130098601","22/12/2015","Older People Provider Services","Bradley Lodge Resource Centre","R4102"
"Wolverhampton City Council","http://opendatacommunities.org/id/metropolitan-district-council/wolverhampton","Arthur Brett (Catering) Limited","ID811318","48.06","Provisions (Resale)","130097532","22/12/2015","Older People Provider Services","Bradley Lodge Resource Centre","R4102"
"Wolverhampton City Council","http://opendatacommunities.org/id/metropolitan-district-council/wolverhampton","Arthur Brett (Catering) Limited","ID814627","38.96","Provisions (Resale)","130099081","22/12/2015","Older People Provider Services","Bradley Lodge Resource Centre","R4102"
"Wolverhampton City Council","http://opendatacommunities.org/id/metropolitan-district-council/wolverhampton","Arthur Brett (Catering) Limited","3110153","186.96","Provisions (Resale)","130097973","09/12/2015","Catering","Meals on Wheels","R4102"
"Wolverhampton City Council","http://opendatacommunities.org/id/metropolitan-district-council/wolverhampton","Arthur Brett (Catering) Limited","3110151","181.74","Provisions (Resale)","130097971","09/12/2015","Catering","Bert Williams Leisure Centre Caf�","R4102"
"Wolverhampton City Council","http://opendatacommunities.org/id/metropolitan-district-council/wolverhampton","Arthur Brett (Catering) Limited","3110152","708.15","Provisions (Resale)","130097972","09/12/2015","Catering","Civic Centre Catering","R4102"
"Wolverhampton City Council","http://opendatacommunities.org/id/metropolitan-district-council/wolverhampton","Arthur Brett (Catering) Limited","ID813069","17.97","Provisions (Resale)","130097729","09/12/2015","Learning Disability Provider","Duke Street Bungalows","R4102"
"Wolverhampton City Council","http://opendatacommunities.org/id/metropolitan-district-council/wolverhampton","Arthur Brett (Catering) Limited","ID812519","24.11","Provisions (Resale)","130098076","09/12/2015","Learning Disability Provider","Duke Street Bungalows","R4102"
"Wolverhampton City Council","http://opendatacommunities.org/id/metropolitan-district-council/wolverhampton","Arthur Brett (Catering) Limited","ID813071","16.19","Provisions (Resale)","130098077","09/12/2015","Learning Disability Provider","Duke Street Bungalows","R4102"
"Wolverhampton City Council","http://opendatacommunities.org/id/metropolitan-district-council/wolverhampton","Arthur Brett (Catering) Limited","ID813347","5.6","Provisions (Resale)","130097834","09/12/2015","Leisure Services","WV Active Catering","R4102"
"Wolverhampton City Council","http://opendatacommunities.org/id/metropolitan-district-council/wolverhampton","Arthur Brett (Catering) Limited","ID813657","31.53","Provisions (Resale)","130098079","09/12/2015","Older People Provider Services","Woden Resource Centre","R4102"
"Wolverhampton City Council","http://opendatacommunities.org/id/metropolitan-district-council/wolverhampton","Arthur Brett (Catering) Limited","ID812250","50.26","Provisions (Resale)","130097833","09/12/2015","Older People Provider Services","Bradley Lodge Resource Centre","R4102"
"Wolverhampton City Council","http://opendatacommunities.org/id/metropolitan-district-council/wolverhampton","Arthur Brett (Catering) Limited","ID807522","27.26","Provisions (Resale)","130096037","09/12/2015","Older People Provider Services","Bradley Lodge Resource Centre","R4102"
"Wolverhampton City Council","http://opendatacommunities.org/id/metropolitan-district-council/wolverhampton","Arthur Brett (Catering) Limited","ID813700","26.87","Provisions (Resale)","130098317","09/12/2015","Older People Provider Services","Blakenhall Resource Centre","R4102"
"Wolverhampton City Council","http://opendatacommunities.org/id/metropolitan-district-council/wolverhampton","Arthur Brett (Catering) Limited","ID813628","73.91","Provisions (Resale)","130098078","11/12/2015","Culture Arts & Heritage","Art Gallery Tea Room","R4102"
"Wolverhampton City Council","http://opendatacommunities.org/id/metropolitan-district-council/wolverhampton","Arthur Brett (Catering) Limited","ID813660","48.91","Provisions (Resale)","130098316","11/12/2015","Older People Provider Services","Woden Resource Centre","R4102"
"Wolverhampton City Council","http://opendatacommunities.org/id/metropolitan-district-council/wolverhampton","Arthur Brett (Catering) Limited","ID813658","128.34","Provisions (Resale)","130098080","11/12/2015","Culture Arts & Heritage","Bantock - Tea Rooms","R4102"
"Wolverhampton City Council","http://opendatacommunities.org/id/metropolitan-district-council/wolverhampton","Arthur Brett (Catering) Limited","WI902131","423.58","Provisions (Resale)","130097840","11/12/2015","Contracts","Children Diet and Physical Activity","R4102"
"Wolverhampton City Council","http://opendatacommunities.org/id/metropolitan-district-council/wolverhampton","Arthur Brett (Catering) Limited","3110154","27,889.41","Provisions (Resale)","130097974","11/12/2015","Catering","Education Catering - General Overheads","R4102"
"Wolverhampton City Council","http://opendatacommunities.org/id/metropolitan-district-council/wolverhampton","Arthur Brett (Catering) Limited","ID813624","17.41","Provisions (Resale)","130098600","16/12/2015","Learning Disability Provider","Duke Street Bungalows","R4102"
"Wolverhampton City Council","http://opendatacommunities.org/id/metropolitan-district-council/wolverhampton","Arthur Brett (Catering) Limited","ID815034","16.19","Provisions (Resale)","130099260","16/12/2015","Learning Disability Provider","Duke Street Bungalows","R4102"
"Wolverhampton City Council","http://opendatacommunities.org/id/metropolitan-district-council/wolverhampton","Arthur Brett (Catering) Limited","ID808286","45.06","Provisions (Resale)","130096637","16/12/2015","Older People Provider Services","Bradley Lodge Resource Centre","R4102"
"Wolverhampton City Council","http://opendatacommunities.org/id/metropolitan-district-council/wolverhampton","Arthur Brett (Catering) Limited","ID813622","71.02","Provisions (Resale)","130098599","16/12/2015","Older People Provider Services","Merry Hill House","R4102"
"Wolverhampton City Council","http://opendatacommunities.org/id/metropolitan-district-council/wolverhampton","Arthur Brett (Catering) Limited","3105155701","184.57","Provisions (Resale)","130093402","16/12/2015","Catering","Education Catering - General Overheads","R4102"
"Wolverhampton City Council","http://opendatacommunities.org/id/metropolitan-district-council/wolverhampton","Arthur Brett (Catering) Limited","ID813661","6.55","Provisions (Resale)","130098602","16/12/2015","Learning Disability Provider","Duke Street Bungalows","R4102"
"Wolverhampton City Council","http://opendatacommunities.org/id/metropolitan-district-council/wolverhampton","Arthur Brett (Catering) Limited","ID808706","42.93","Provisions (Resale)","130096787","16/12/2015","Older People Provider Services","Woden Resource Centre","R4102"
"Wolverhampton City Council","http://opendatacommunities.org/id/metropolitan-district-council/wolverhampton","Arthur Brett (Catering) Limited","CN310515","-184.57","Provisions (Resale)","130099066","16/12/2015","Catering","Education Catering - General Overheads","R4102"
"Wolverhampton City Council","http://opendatacommunities.org/id/metropolitan-district-council/wolverhampton","Arthur Brett (Catering) Limited","ID815114","89.75","Provisions (Resale)","130098807","16/12/2015","Culture Arts & Heritage","Bantock - Tea Rooms","R4102"
"Wolverhampton City Council","http://opendatacommunities.org/id/metropolitan-district-council/wolverhampton","Arthur Brett (Catering) Limited","ID815562","35.52","Provisions (Resale)","130099263","16/12/2015","Leisure Services","WV Active Catering","R4102"
"Wolverhampton City Council","http://opendatacommunities.org/id/metropolitan-district-council/wolverhampton","Arthur Brett (Catering) Limited","ID816100","1.9","Provisions (Resale)","130099267","16/12/2015","Culture Arts & Heritage","Art Gallery Tea Room","R4102"
"Wolverhampton City Council","http://opendatacommunities.org/id/metropolitan-district-council/wolverhampton","Arthur Brett (Catering) Limited","ID814568","88.43","Provisions (Resale)","130098603","16/12/2015","Culture Arts & Heritage","Art Gallery Tea Room","R4102"
"Wolverhampton City Council","http://opendatacommunities.org/id/metropolitan-district-council/wolverhampton","Arthur Brett (Catering) Limited","ID815966","90.88","Provisions (Resale)","130099266","16/12/2015","Culture Arts & Heritage","Art Gallery Tea Room","R4102"
"Wolverhampton City Council","http://opendatacommunities.org/id/metropolitan-district-council/wolverhampton","Arthur Brett (Catering) Limited","ID815867","65.82","Provisions (Resale)","130099265","16/12/2015","Culture Arts & Heritage","Bantock - Tea Rooms","R4102"
"Wolverhampton City Council","http://opendatacommunities.org/id/metropolitan-district-council/wolverhampton","Arthur Brett (Catering) Limited","ID814631","44.22","Provisions (Resale)","130099082","16/12/2015","Older People Provider Services","Nelson Mandela House","R4102"
"Wolverhampton City Council","http://opendatacommunities.org/id/metropolitan-district-council/wolverhampton","Arthur Brett (Catering) Limited","ID811778","47.52","Provisions (Resale)","130097832","29/12/2015","Older People Provider Services","Nelson Mandela House","R4102"
"Wolverhampton City Council","http://opendatacommunities.org/id/metropolitan-district-council/wolverhampton","Arthur Brett (Catering) Limited","ID815901","70.51","Provisions (Resale)","130100105","29/12/2015","Older People Provider Services","Bradley Lodge Resource Centre","R4102"
"Wolverhampton City Council","http://opendatacommunities.org/id/metropolitan-district-council/wolverhampton","Arthur Brett (Catering) Limited","ID816045","65.69","Provisions (Resale)","130100762","29/12/2015","Older People Provider Services","Bradley Lodge Resource Centre","R4102"
"Wolverhampton City Council","http://opendatacommunities.org/id/metropolitan-district-council/wolverhampton","Arthur Brett (Catering) Limited","ID817893","29.1","Provisions (Resale)","130100530","29/12/2015","Older People Provider Services","Blakenhall Resource Centre","R4102"
"Wolverhampton City Council","http://opendatacommunities.org/id/metropolitan-district-council/wolverhampton","Arthur M Griffiths & Son Limited","IN16962","71,704.01","Construction and Conversion","130098318","09/12/2015","","Primary Expansion Programme","C1100"
"Wolverhampton City Council","http://opendatacommunities.org/id/metropolitan-district-council/wolverhampton","Arthur M Griffiths & Son Limited","IN16974","74,765.56","Construction and Conversion","130100107","18/12/2015","","Primary Expansion Programme","C1100"
"Wolverhampton City Council","http://opendatacommunities.org/id/metropolitan-district-council/wolverhampton","Arthur M Griffiths & Son Limited","IN16968","38,261.00","Construction and Conversion","130099083","16/12/2015","","Primary Expansion Programme","C1100"
"Wolverhampton City Council","http://opendatacommunities.org/id/metropolitan-district-council/wolverhampton","Asdan Limited","232544","178","Training Expenses","130096729","03/12/2015","Social Inclusion & Play Service","MAST 7 - Berrybrook","R1650"
"Wolverhampton City Council","http://opendatacommunities.org/id/metropolitan-district-council/wolverhampton","Ashtead Plant Hire Company Limited","13607279","1,815.92","Equipment - Hire","130095001","03/12/2015","Visitor Economy","Hickman Park - Bonfire","R4001"
"Wolverhampton City Council","http://opendatacommunities.org/id/metropolitan-district-council/wolverhampton","Ashtead Plant Hire Company Limited","13607279","-1,815.92","Equipment - Hire","130095001","03/12/2015","Visitor Economy","Hickman Park - Bonfire","R4001"
"Wolverhampton City Council","http://opendatacommunities.org/id/metropolitan-district-council/wolverhampton","Ashtead Plant Hire Company Limited","13607279","1,607.12","Equipment - Hire","130095001","03/12/2015","Visitor Economy","Hickman Park - Bonfire","R4001"
"Wolverhampton City Council","http://opendatacommunities.org/id/metropolitan-district-council/wolverhampton","Ashtead Plant Hire Company Limited","13607279","208.82","Equipment - Hire","130095001","03/12/2015","Visitor Economy","Hickman Park - Bonfire","R4001"
"Wolverhampton City Council","http://opendatacommunities.org/id/metropolitan-district-council/wolverhampton","Ashtead Plant Hire Company Limited","13607280","257.85","Equipment - Hire","130095002","03/12/2015","Visitor Economy","Hickman Park - Bonfire","R4001"
"Wolverhampton City Council","http://opendatacommunities.org/id/metropolitan-district-council/wolverhampton","Ashtead Plant Hire Company Limited","13607280","18","Equipment - Hire","130095002","03/12/2015","Visitor Economy","Hickman Park - Bonfire","R4001"
"Wolverhampton City Council","http://opendatacommunities.org/id/metropolitan-district-council/wolverhampton","Ashtead Plant Hire Company Limited","13621977","619.13","Equipment - Hire","130096123","09/12/2015","Visitor Economy","Bonfire","R4001"
"Wolverhampton City Council","http://opendatacommunities.org/id/metropolitan-district-council/wolverhampton","Ashtead Plant Hire Company Limited","13621977","67.5","Equipment - Hire","130096123","09/12/2015","Visitor Economy","Bonfire","R4001"
"Wolverhampton City Council","http://opendatacommunities.org/id/metropolitan-district-council/wolverhampton","Ashton Engineering Co. Limited","3959","348.56","Equipment - R & M","190184753","09/12/2015","Fleet Services","Fleet Management","R4003"
"Wolverhampton City Council","http://opendatacommunities.org/id/metropolitan-district-council/wolverhampton","Ashton Engineering Co. Limited","3961","195.05","Equipment - R & M","190184754","09/12/2015","Fleet Services","Fleet Management","R4003"
"Wolverhampton City Council","http://opendatacommunities.org/id/metropolitan-district-council/wolverhampton","Askews & Holts Library Services Limited","4869559","13.98","Books","130098224","22/12/2015","Library Services","Global Budgets","R4309"
"Wolverhampton City Council","http://opendatacommunities.org/id/metropolitan-district-council/wolverhampton","Askews & Holts Library Services Limited","4869559","-13.98","Books","130098224","22/12/2015","Library Services","Global Budgets","R4309"
"Wolverhampton City Council","http://opendatacommunities.org/id/metropolitan-district-council/wolverhampton","Askews & Holts Library Services Limited","4869559","13.98","Books","130098224","22/12/2015","Library Services","Global Budgets","R4309"
"Wolverhampton City Council","http://opendatacommunities.org/id/metropolitan-district-council/wolverhampton","Askews & Holts Library Services Limited","4865568","14.49","Books","130098525","22/12/2015","Library Services","Global Budgets","R4309"
"Wolverhampton City Council","http://opendatacommunities.org/id/metropolitan-district-council/wolverhampton","Askews & Holts Library Services Limited","4865569","219.19","Books","130098526","22/12/2015","Library Services","Global Budgets","R4309"
"Wolverhampton City Council","http://opendatacommunities.org/id/metropolitan-district-council/wolverhampton","Askews & Holts Library Services Limited","4866634","27.33","Books","130097998","22/12/2015","Library Services","Global Budgets","R4309"
"Wolverhampton City Council","http://opendatacommunities.org/id/metropolitan-district-council/wolverhampton","Askews & Holts Library Services Limited","4857890","309.54","Books","130097996","22/12/2015","Library Services","Global Budgets","R4309"
"Wolverhampton City Council","http://opendatacommunities.org/id/metropolitan-district-council/wolverhampton","Askews & Holts Library Services Limited","4867410","42.01","Books","130097999","22/12/2015","Library Services","Global Budgets","R4309"
"Wolverhampton City Council","http://opendatacommunities.org/id/metropolitan-district-council/wolverhampton","Askews & Holts Library Services Limited","4867411","29.4","Books","130098000","22/12/2015","Library Services","Global Budgets","R4309"
"Wolverhampton City Council","http://opendatacommunities.org/id/metropolitan-district-council/wolverhampton","Askews & Holts Library Services Limited","4862493","30.71","Books","130097997","22/12/2015","Library Services","Global Budgets","R4309"
"Wolverhampton City Council","http://opendatacommunities.org/id/metropolitan-district-council/wolverhampton","Askews & Holts Library Services Limited","4862493","-30.71","Books","130097997","22/12/2015","Library Services","Global Budgets","R4309"
"Wolverhampton City Council","http://opendatacommunities.org/id/metropolitan-district-council/wolverhampton","Askews & Holts Library Services Limited","4862493","30.71","Books","130097997","22/12/2015","Library Services","Global Budgets","R4309"
"Wolverhampton City Council","http://opendatacommunities.org/id/metropolitan-district-council/wolverhampton","Askews & Holts Library Services Limited","4854592","397.38","Books","130097498","22/12/2015","Library Services","Global Budgets","R4309"
"Wolverhampton City Council","http://opendatacommunities.org/id/metropolitan-district-council/wolverhampton","Askews & Holts Library Services Limited","4854591","57.8","Books","130097497","22/12/2015","Library Services","Global Budgets","R4309"
"Wolverhampton City Council","http://opendatacommunities.org/id/metropolitan-district-council/wolverhampton","Askews & Holts Library Services Limited","4839190","5.95","Books","130094722","03/12/2015","Library Services","Global Budgets","R4309"
"Wolverhampton City Council","http://opendatacommunities.org/id/metropolitan-district-council/wolverhampton","Askews & Holts Library Services Limited","4839192","487.21","Books","130094724","03/12/2015","Library Services","Global Budgets","R4309"
"Wolverhampton City Council","http://opendatacommunities.org/id/metropolitan-district-council/wolverhampton","Askews & Holts Library Services Limited","4839194","113.75","Books","130094726","03/12/2015","Library Services","Global Budgets","R4309"
"Wolverhampton City Council","http://opendatacommunities.org/id/metropolitan-district-council/wolverhampton","Askews & Holts Library Services Limited","4839193","121.83","Books","130094725","03/12/2015","Library Services","Global Budgets","R4309"
"Wolverhampton City Council","http://opendatacommunities.org/id/metropolitan-district-council/wolverhampton","Askews & Holts Library Services Limited","4839191","3.16","Books","130094723","03/12/2015","Library Services","Global Budgets","R4309"
"Wolverhampton City Council","http://opendatacommunities.org/id/metropolitan-district-council/wolverhampton","Askews & Holts Library Services Limited","4843386","6.51","Books","130095977","09/12/2015","Library Services","Global Budgets","R4309"
"Wolverhampton City Council","http://opendatacommunities.org/id/metropolitan-district-council/wolverhampton","Askews & Holts Library Services Limited","4843384","518","Books","130095975","09/12/2015","Library Services","Global Budgets","R4309"
"Wolverhampton City Council","http://opendatacommunities.org/id/metropolitan-district-council/wolverhampton","Askews & Holts Library Services Limited","4843385","521.94","Books","130095976","09/12/2015","Library Services","Global Budgets","R4309"
"Wolverhampton City Council","http://opendatacommunities.org/id/metropolitan-district-council/wolverhampton","Askews & Holts Library Services Limited","4852220","8.54","Books","130096208","11/12/2015","Library Services","Global Budgets","R4309"
"Wolverhampton City Council","http://opendatacommunities.org/id/metropolitan-district-council/wolverhampton","Askews & Holts Library Services Limited","4852220","-8.54","Books","130096208","11/12/2015","Library Services","Global Budgets","R4309"
"Wolverhampton City Council","http://opendatacommunities.org/id/metropolitan-district-council/wolverhampton","Askews & Holts Library Services Limited","4852220","8.54","Books","130096208","11/12/2015","Library Services","Global Budgets","R4309"
"Wolverhampton City Council","http://opendatacommunities.org/id/metropolitan-district-council/wolverhampton","Askews & Holts Library Services Limited","4848840","19.19","Books","130096205","11/12/2015","Library Services","Global Budgets","R4309"
"Wolverhampton City Council","http://opendatacommunities.org/id/metropolitan-district-council/wolverhampton","Askews & Holts Library Services Limited","4848841","251.84","Books","130096206","11/12/2015","Library Services","Global Budgets","R4309"
"Wolverhampton City Council","http://opendatacommunities.org/id/metropolitan-district-council/wolverhampton","Askews & Holts Library Services Limited","4848842","332.28","Books","130096207","11/12/2015","Library Services","Global Budgets","R4309"
"Wolverhampton City Council","http://opendatacommunities.org/id/metropolitan-district-council/wolverhampton","Askews & Holts Library Services Limited","4850176","88","Books","130096613","16/12/2015","Library Services","Global Budgets","R4309"
"Wolverhampton City Council","http://opendatacommunities.org/id/metropolitan-district-council/wolverhampton","Askews & Holts Library Services Limited","4856871","8.05","Books","130096614","16/12/2015","Library Services","Global Budgets","R4309"
"Wolverhampton City Council","http://opendatacommunities.org/id/metropolitan-district-council/wolverhampton","Askews & Holts Library Services Limited","4856871","-8.05","Books","130096614","16/12/2015","Library Services","Global Budgets","R4309"
"Wolverhampton City Council","http://opendatacommunities.org/id/metropolitan-district-council/wolverhampton","Askews & Holts Library Services Limited","4856871","8.05","Books","130096614","16/12/2015","Library Services","Global Budgets","R4309"
"Wolverhampton City Council","http://opendatacommunities.org/id/metropolitan-district-council/wolverhampton","Askews & Holts Library Services Limited","4850175","14.7","Books","130096868","16/12/2015","Library Services","Global Budgets","R4309"
"Wolverhampton City Council","http://opendatacommunities.org/id/metropolitan-district-council/wolverhampton","Askews & Holts Library Services Limited","4854044","19.59","Books","130096209","16/12/2015","Library Services","Global Budgets","R4309"
"Wolverhampton City Council","http://opendatacommunities.org/id/metropolitan-district-council/wolverhampton","Askews & Holts Library Services Limited","4854044","-19.59","Books","130096209","16/12/2015","Library Services","Global Budgets","R4309"
"Wolverhampton City Council","http://opendatacommunities.org/id/metropolitan-district-council/wolverhampton","Askews & Holts Library Services Limited","4854044","19.59","Books","130096209","16/12/2015","Library Services","Global Budgets","R4309"
"Wolverhampton City Council","http://opendatacommunities.org/id/metropolitan-district-council/wolverhampton","Assn Of Electoral Administrators","17825","-2,035.39","Agency Staff","130095573","07/12/2015","Corporate Administration","Electoral Registration","R1100"
"Wolverhampton City Council","http://opendatacommunities.org/id/metropolitan-district-council/wolverhampton","Assn Of Electoral Administrators","17825","1,421.39","Agency Staff","130095573","07/12/2015","Corporate Administration","Electoral Registration","R1100"
"Wolverhampton City Council","http://opendatacommunities.org/id/metropolitan-district-council/wolverhampton","Assn Of Electoral Administrators","17825","614","Agency Staff","130095573","07/12/2015","Corporate Administration","Electoral Registration","R1100"
"Wolverhampton City Council","http://opendatacommunities.org/id/metropolitan-district-council/wolverhampton","Assn Of Electoral Administrators","17825","2,035.39","Agency Staff","130095573","07/12/2015","Corporate Administration","Electoral Registration","R1100"
"Wolverhampton City Council","http://opendatacommunities.org/id/metropolitan-district-council/wolverhampton","Assn Of Electoral Administrators","17906","644","Staff Advertising Costs","130096155","16/12/2015","Corporate Administration","Electoral Registration","R1700"
"Wolverhampton City Council","http://opendatacommunities.org/id/metropolitan-district-council/wolverhampton","Associated  Radio Taxi�s","8270","911.54","Client Transport","130097320","07/12/2015","School Planning & Resources","Primary - Transport","R3042"
"Wolverhampton City Council","http://opendatacommunities.org/id/metropolitan-district-council/wolverhampton","Associated  Radio Taxi�s","8269","1,105.68","Client Transport","130097319","07/12/2015","School Planning & Resources","Secondary- Transport","R3042"
"Wolverhampton City Council","http://opendatacommunities.org/id/metropolitan-district-council/wolverhampton","Associated  Radio Taxi�s","8266","941.54","Client Transport","130097506","07/12/2015","School Planning & Resources","Secondary- Transport","R3042"
"Wolverhampton City Council","http://opendatacommunities.org/id/metropolitan-district-council/wolverhampton","Associated  Radio Taxi�s","8267","884.16","Client Transport","130097507","07/12/2015","Schools","Pupil Referral Units ISB","R3042"
"Wolverhampton City Council","http://opendatacommunities.org/id/metropolitan-district-council/wolverhampton","Associated  Radio Taxi�s","1926","188.5","Client Transport","130098113","22/12/2015","Learning Disability Provider","Windmill Lane - Respite Home","R3042"
"Wolverhampton City Council","http://opendatacommunities.org/id/metropolitan-district-council/wolverhampton","Associated  Radio Taxi�s","8282","1,244.46","Client Transport","130100066","22/12/2015","School Planning & Resources","Primary - Transport","R3042"
"Wolverhampton City Council","http://opendatacommunities.org/id/metropolitan-district-council/wolverhampton","Associated  Radio Taxi�s","8287","1,325.60","Client Transport","130100071","22/12/2015","School Planning & Resources","Primary - Transport","R3042"
"Wolverhampton City Council","http://opendatacommunities.org/id/metropolitan-district-council/wolverhampton","Associated  Radio Taxi�s","8284","1,072.40","Client Transport","130100068","22/12/2015","School Planning & Resources","Primary - Transport","R3042"
"Wolverhampton City Council","http://opendatacommunities.org/id/metropolitan-district-council/wolverhampton","Associated  Radio Taxi�s","8290","973.75","Client Transport","130100074","22/12/2015","School Planning & Resources","Special - Transport","R3042"
"Wolverhampton City Council","http://opendatacommunities.org/id/metropolitan-district-council/wolverhampton","Associated  Radio Taxi�s","8289","950","Client Transport","130100073","22/12/2015","School Planning & Resources","Secondary- Transport","R3042"
"Wolverhampton City Council","http://opendatacommunities.org/id/metropolitan-district-council/wolverhampton","Associated  Radio Taxi�s","1928","45.8","Client Transport","130099415","22/12/2015","Learning Disability Provider","Swan Bank","R3042"
"Wolverhampton City Council","http://opendatacommunities.org/id/metropolitan-district-council/wolverhampton","Associated  Radio Taxi�s","8273","1,126.76","Client Transport","130097323","03/12/2015","School Planning & Resources","Primary - Transport","R3042"
"Wolverhampton City Council","http://opendatacommunities.org/id/metropolitan-district-council/wolverhampton","Associated  Radio Taxi�s","8278","24.4","Client Transport","130097327","03/12/2015","School Planning & Resources","Special - Transport","R3042"
"Wolverhampton City Council","http://opendatacommunities.org/id/metropolitan-district-council/wolverhampton","Associated  Radio Taxi�s","8268","948.16","Client Transport","130097318","03/12/2015","School Planning & Resources","Primary - Transport","R3042"
"Wolverhampton City Council","http://opendatacommunities.org/id/metropolitan-district-council/wolverhampton","Associated  Radio Taxi�s","8275","760","Client Transport","130097325","03/12/2015","School Planning & Resources","Secondary- Transport","R3042"
"Wolverhampton City Council","http://opendatacommunities.org/id/metropolitan-district-council/wolverhampton","Associated  Radio Taxi�s","8274","884.16","Client Transport","130097324","03/12/2015","School Planning & Resources","Secondary- Transport","R3042"
"Wolverhampton City Council","http://opendatacommunities.org/id/metropolitan-district-council/wolverhampton","Associated  Radio Taxi�s","8272","782.5","Client Transport","130097322","03/12/2015","School Planning & Resources","Special - Transport","R3042"
"Wolverhampton City Council","http://opendatacommunities.org/id/metropolitan-district-council/wolverhampton","Associated  Radio Taxi�s","8271","1,390.94","Client Transport","130097321","09/12/2015","School Planning & Resources","Special - Transport","R3042"
"Wolverhampton City Council","http://opendatacommunities.org/id/metropolitan-district-council/wolverhampton","Associated  Radio Taxi�s","8276","807.5","Client Transport","130097326","09/12/2015","School Planning & Resources","Special - Transport","R3042"
"Wolverhampton City Council","http://opendatacommunities.org/id/metropolitan-district-council/wolverhampton","Associated  Radio Taxi�s","1922","526.9","Client Transport","130098111","09/12/2015","Children in Need & Child Protection","Valley Park - CIN  Social Work Unit - S17","R3042"
"Wolverhampton City Council","http://opendatacommunities.org/id/metropolitan-district-council/wolverhampton","Associated  Radio Taxi�s","1922","-526.9","Client Transport","130098111","09/12/2015","Children in Need & Child Protection","Valley Park - CIN  Social Work Unit - S17","R3042"
"Wolverhampton City Council","http://opendatacommunities.org/id/metropolitan-district-council/wolverhampton","Associated  Radio Taxi�s","1922","526.9","Client Transport","130098111","09/12/2015","Children in Need & Child Protection","Valley Park - CIN  Social Work Unit - S17","R3042"
"Wolverhampton City Council","http://opendatacommunities.org/id/metropolitan-district-council/wolverhampton","Associated  Radio Taxi�s","8291","48.8","Client Transport","130100075","18/12/2015","School Planning & Resources","Special - Transport","R3042"
"Wolverhampton City Council","http://opendatacommunities.org/id/metropolitan-district-council/wolverhampton","Associated  Radio Taxi�s","8283","1,300.80","Client Transport","130100067","18/12/2015","School Planning & Resources","Secondary- Transport","R3042"
"Wolverhampton City Council","http://opendatacommunities.org/id/metropolitan-district-council/wolverhampton","Associated  Radio Taxi�s","8285","1,628.90","Client Transport","130100069","18/12/2015","School Planning & Resources","Special - Transport","R3042"
"Wolverhampton City Council","http://opendatacommunities.org/id/metropolitan-district-council/wolverhampton","Associated  Radio Taxi�s","8281","1,049.94","Client Transport","130100065","18/12/2015","Schools","Pupil Referral Units ISB","R3042"
"Wolverhampton City Council","http://opendatacommunities.org/id/metropolitan-district-council/wolverhampton","Associated  Radio Taxi�s","8281","-1,049.94","Client Transport","130100065","18/12/2015","Schools","Pupil Referral Units ISB","R3042"
"Wolverhampton City Council","http://opendatacommunities.org/id/metropolitan-district-council/wolverhampton","Associated  Radio Taxi�s","8281","1,049.94","Client Transport","130100065","18/12/2015","Schools","Pupil Referral Units ISB","R3042"
"Wolverhampton City Council","http://opendatacommunities.org/id/metropolitan-district-council/wolverhampton","Associated  Radio Taxi�s","8286","902.5","Client Transport","130100070","18/12/2015","School Planning & Resources","Special - Transport","R3042"
"Wolverhampton City Council","http://opendatacommunities.org/id/metropolitan-district-council/wolverhampton","Associated  Radio Taxi�s","8288","1,105.20","Client Transport","130100072","18/12/2015","School Planning & Resources","Secondary- Transport","R3042"
"Wolverhampton City Council","http://opendatacommunities.org/id/metropolitan-district-council/wolverhampton","Associated  Radio Taxi�s","8280","1,160.46","Client Transport","130099553","16/12/2015","School Planning & Resources","Secondary- Transport","R3042"
"Wolverhampton City Council","http://opendatacommunities.org/id/metropolitan-district-council/wolverhampton","Associated  Radio Taxi�s","1923","9.3","Client Transport","130098112","16/12/2015","Learning Disability Provider","Swan Bank","R3042"
"Wolverhampton City Council","http://opendatacommunities.org/id/metropolitan-district-council/wolverhampton","Association Of Adult Education And","INV - 0084","820","Subscriptions","130100765","29/12/2015","Adult Education","Service Wide","R4701"
"Wolverhampton City Council","http://opendatacommunities.org/id/metropolitan-district-council/wolverhampton","Association Of Teachers & Lecturers","SI-4354","300","Services - Professional Fees","130099362","11/12/2015","Schools","New Park Special School","R4400"
"Wolverhampton City Council","http://opendatacommunities.org/id/metropolitan-district-council/wolverhampton","Pelican Rouge Coffee Solutions Limited","150038857","678.82","Provisions (Resale)","130097269","03/12/2015","Catering","Civic Centre Catering","R4102"
"Wolverhampton City Council","http://opendatacommunities.org/id/metropolitan-district-council/wolverhampton","Pelican Rouge Coffee Solutions Limited","150007169","450.66","Provisions (Resale)","130097267","03/12/2015","Catering","Civic Centre Catering","R4102"
"Wolverhampton City Council","http://opendatacommunities.org/id/metropolitan-district-council/wolverhampton","Pelican Rouge Coffee Solutions Limited","150010127","53","Provisions (Resale)","130097268","03/12/2015","Catering","Civic Centre Catering","R4102"
"Wolverhampton City Council","http://opendatacommunities.org/id/metropolitan-district-council/wolverhampton","Pelican Rouge Coffee Solutions Limited","150092731","349.62","Provisions (Resale)","130097270","03/12/2015","Catering","Civic Centre Catering","R4102"
"Wolverhampton City Council","http://opendatacommunities.org/id/metropolitan-district-council/wolverhampton","Axiom Building Solutions","1855","450","R&M - Departmental planned (external)","130098883","22/12/2015","Engineering & Civic Centre","Statutory Services (10RM)","R2001"
"Wolverhampton City Council","http://opendatacommunities.org/id/metropolitan-district-council/wolverhampton","Axiom Building Solutions","1852","25,625.00","R&M - Departmental planned (external)","130098881","22/12/2015","Physical Regeneration","Former Heath Town Baths and Library","R2001"
"Wolverhampton City Council","http://opendatacommunities.org/id/metropolitan-district-council/wolverhampton","Axiom Building Solutions","1854","650","Construction and Conversion","130098882","22/12/2015","","Future Spaces","C1100"
"Wolverhampton City Council","http://opendatacommunities.org/id/metropolitan-district-council/wolverhampton","Axiom Building Solutions","1711","195","R&M - Departmental planned (external)","130098393","09/12/2015","Corporate Asset Management","Statutory Surveys","R2001"
"Wolverhampton City Council","http://opendatacommunities.org/id/metropolitan-district-council/wolverhampton","Axiom Building Solutions","1649","1,500.00","Construction and Conversion","130095538","18/12/2015","","Future Spaces","C1100"
"Wolverhampton City Council","http://opendatacommunities.org/id/metropolitan-district-council/wolverhampton","Axiom Building Solutions","1831","495","Construction and Conversion","130098880","18/12/2015","","Westside","C1100"
"Wolverhampton City Council","http://opendatacommunities.org/id/metropolitan-district-council/wolverhampton","B Harris","8","70","Services - Professional Fees","190183689","07/12/2015","Parking Services","Advisory Road Markings and Disabled Bays","R4400"
"Wolverhampton City Council","http://opendatacommunities.org/id/metropolitan-district-council/wolverhampton","Badenoch & Clark Recruit. Specialist","4735909","1,053.38","Agency Staff","130097783","07/12/2015","Legal Services","Legal Services","R1100"
"Wolverhampton City Council","http://opendatacommunities.org/id/metropolitan-district-council/wolverhampton","Badenoch & Clark Recruit. Specialist","4736237","3,529.40","Agency Staff","130097786","07/12/2015","Service Director City Environment","Service Director City Environment","R1100"
"Wolverhampton City Council","http://opendatacommunities.org/id/metropolitan-district-council/wolverhampton","Badenoch & Clark Recruit. Specialist","4736239","3,529.40","Agency Staff","130097788","07/12/2015","Service Director City Environment","Service Director City Environment","R1100"
"Wolverhampton City Council","http://opendatacommunities.org/id/metropolitan-district-council/wolverhampton","Badenoch & Clark Recruit. Specialist","4736241","3,529.40","Agency Staff","130097790","07/12/2015","Service Director City Environment","Service Director City Environment","R1100"
"Wolverhampton City Council","http://opendatacommunities.org/id/metropolitan-district-council/wolverhampton","Badenoch & Clark Recruit. Specialist","4733478","1,426.85","Agency Staff","130097488","07/12/2015","Strategic Financial Services","Strategic Financial Services","R1100"
"Wolverhampton City Council","http://opendatacommunities.org/id/metropolitan-district-council/wolverhampton","Badenoch & Clark Recruit. Specialist","4733481","890.63","Agency Staff","130097491","07/12/2015","Strategic Financial Services","Strategic Financial Services","R1100"
"Wolverhampton City Council","http://opendatacommunities.org/id/metropolitan-district-council/wolverhampton","Badenoch & Clark Recruit. Specialist","4733118","934.13","Agency Staff","130097487","07/12/2015","Legal Services","Legal Services","R1100"
"Wolverhampton City Council","http://opendatacommunities.org/id/metropolitan-district-council/wolverhampton","Badenoch & Clark Recruit. Specialist","4736236","1,206.00","Agency Staff","130097785","07/12/2015","Strategic Financial Services","Corporate Procurement Unit","R1100"
"Wolverhampton City Council","http://opendatacommunities.org/id/metropolitan-district-council/wolverhampton","Badenoch & Clark Recruit. Specialist","4736238","2,412.00","Agency Staff","130097787","07/12/2015","Strategic Financial Services","Corporate Procurement Unit","R1100"
"Wolverhampton City Council","http://opendatacommunities.org/id/metropolitan-district-council/wolverhampton","Badenoch & Clark Recruit. Specialist","4736242","2,375.00","Agency Staff","130097791","07/12/2015","The Hub","Payroll Services","R1100"
"Wolverhampton City Council","http://opendatacommunities.org/id/metropolitan-district-council/wolverhampton","Badenoch & Clark Recruit. Specialist","4736235","1,449.32","Agency Staff","130097784","07/12/2015","Strategic Financial Services","Strategic Financial Services","R1100"
"Wolverhampton City Council","http://opendatacommunities.org/id/metropolitan-district-council/wolverhampton","Badenoch & Clark Recruit. Specialist","4733482","890.63","Agency Staff","130097492","07/12/2015","Strategic Financial Services","Strategic Financial Services","R1100"
"Wolverhampton City Council","http://opendatacommunities.org/id/metropolitan-district-council/wolverhampton","Badenoch & Clark Recruit. Specialist","4733479","890.63","Agency Staff","130097489","07/12/2015","Strategic Financial Services","Strategic Financial Services","R1100"
"Wolverhampton City Council","http://opendatacommunities.org/id/metropolitan-district-council/wolverhampton","Badenoch & Clark Recruit. Specialist","4733480","890.63","Agency Staff","130097490","07/12/2015","Strategic Financial Services","Strategic Financial Services","R1100"
"Wolverhampton City Council","http://opendatacommunities.org/id/metropolitan-district-council/wolverhampton","Badenoch & Clark Recruit. Specialist","4733483","2,058.80","Agency Staff","130097493","07/12/2015","Strategic Financial Services","Strategic Financial Services","R1100"
"Wolverhampton City Council","http://opendatacommunities.org/id/metropolitan-district-council/wolverhampton","Badenoch & Clark Recruit. Specialist","4736240","2,058.80","Agency Staff","130097789","07/12/2015","Strategic Financial Services","Strategic Financial Services","R1100"
"Wolverhampton City Council","http://opendatacommunities.org/id/metropolitan-district-council/wolverhampton","Badenoch & Clark Recruit. Specialist","4741784","3,250.00","Agency Staff","130100040","22/12/2015","Transformation","Corporate Programmes","R1100"
"Wolverhampton City Council","http://opendatacommunities.org/id/metropolitan-district-council/wolverhampton","Badenoch & Clark Recruit. Specialist","4707490","2,823.52","Agency Staff","130100466","22/12/2015","Service Director City Environment","Service Director City Environment","R1100"
"Wolverhampton City Council","http://opendatacommunities.org/id/metropolitan-district-council/wolverhampton","Badenoch & Clark Recruit. Specialist","4657127","36.85","Agency Staff","130100462","22/12/2015","Strategic Financial Services","Strategic Financial Services","R1100"
"Wolverhampton City Council","http://opendatacommunities.org/id/metropolitan-district-council/wolverhampton","Badenoch & Clark Recruit. Specialist","4728735","540","Agency Staff","130096469","03/12/2015","Democracy","Democratic Support","R1100"
"Wolverhampton City Council","http://opendatacommunities.org/id/metropolitan-district-council/wolverhampton","Badenoch & Clark Recruit. Specialist","4733484","1,900.00","Agency Staff","130097494","03/12/2015","The Hub","Payroll Services","R1100"
"Wolverhampton City Council","http://opendatacommunities.org/id/metropolitan-district-council/wolverhampton","Badenoch & Clark Recruit. Specialist","4739002","2,412.00","Agency Staff","130099503","18/12/2015","Strategic Financial Services","Corporate Procurement Unit","R1100"
"Wolverhampton City Council","http://opendatacommunities.org/id/metropolitan-district-council/wolverhampton","Badenoch & Clark Recruit. Specialist","4739003","2,412.00","Agency Staff","130099504","18/12/2015","Strategic Financial Services","Corporate Procurement Unit","R1100"
"Wolverhampton City Council","http://opendatacommunities.org/id/metropolitan-district-council/wolverhampton","Badenoch & Clark Recruit. Specialist","4738673","987.13","Agency Staff","130099501","18/12/2015","Legal Services","Legal Services","R1100"
"Wolverhampton City Council","http://opendatacommunities.org/id/metropolitan-district-council/wolverhampton","Badenoch & Clark Recruit. Specialist","4739006","1,900.00","Agency Staff","130099507","16/12/2015","The Hub","Payroll Services","R1100"
"Wolverhampton City Council","http://opendatacommunities.org/id/metropolitan-district-council/wolverhampton","Badenoch & Clark Recruit. Specialist","4739005","3,529.40","Agency Staff","130099506","16/12/2015","Service Director City Environment","Service Director City Environment","R1100"
"Wolverhampton City Council","http://opendatacommunities.org/id/metropolitan-district-council/wolverhampton","Badenoch & Clark Recruit. Specialist","4739001","1,078.56","Agency Staff","130099502","16/12/2015","Strategic Financial Services","Strategic Financial Services","R1100"
"Wolverhampton City Council","http://opendatacommunities.org/id/metropolitan-district-council/wolverhampton","Badenoch & Clark Recruit. Specialist","4739004","2,058.80","Agency Staff","130099505","16/12/2015","Strategic Financial Services","Strategic Financial Services","R1100"
"Wolverhampton City Council","http://opendatacommunities.org/id/metropolitan-district-council/wolverhampton","Badenoch & Clark Recruit. Specialist","4741781","2,058.80","Agency Staff","130100037","18/12/2015","Strategic Financial Services","Strategic Financial Services","R1100"
"Wolverhampton City Council","http://opendatacommunities.org/id/metropolitan-district-council/wolverhampton","Badenoch & Clark Recruit. Specialist","4741779","1,393.14","Agency Staff","130100035","18/12/2015","Strategic Financial Services","Strategic Financial Services","R1100"
"Wolverhampton City Council","http://opendatacommunities.org/id/metropolitan-district-council/wolverhampton","Bagri News (High Street News)","WENEWS018","87.63","Books","130096805","11/12/2015","Library Services","Wednesfield Library","R4309"
"Wolverhampton City Council","http://opendatacommunities.org/id/metropolitan-district-council/wolverhampton","Bagri News (High Street News)","WENEWS019","70.34","Books","130100363","29/12/2015","Library Services","Wednesfield Library","R4309"
"Wolverhampton City Council","http://opendatacommunities.org/id/metropolitan-district-council/wolverhampton","Barts Busy Bees","NEF Aut 2015 Inst 2","4,099.35","TPP - Private Nursery Education Funding","190188598","18/12/2015","Childrens Centres & Early Years","Early Years Non Maintained Schools","R5035"
"Wolverhampton City Council","http://opendatacommunities.org/id/metropolitan-district-council/wolverhampton","Barts Busy Bees","T42 Aut 2015 Inst 2","9,550.80","Grant Payments","190187978","16/12/2015","Childrens Centres & Early Years","2 Year Olds Pilot - Early Learning & Childcare","R4700"
"Wolverhampton City Council","http://opendatacommunities.org/id/metropolitan-district-council/wolverhampton","Base 25","2412","350","TPP - Public Health Contracts","130089157","16/12/2015","Children in Need & Child Protection","Alfred Squire  - CIN  Social Work Unit - S17","R5060"
"Wolverhampton City Council","http://opendatacommunities.org/id/metropolitan-district-council/wolverhampton","Bbp.Security Services & Training Limited","517SAT201015","150","Services - Security","130092053","03/12/2015","Engineering & Civic Centre","Management of Vacant Properties","R4405"
"Wolverhampton City Council","http://opendatacommunities.org/id/metropolitan-district-council/wolverhampton","Bbp.Security Services & Training Limited","516SAT201015","150","Services - Security","130092052","03/12/2015","Engineering & Civic Centre","Management of Vacant Properties","R4405"
"Wolverhampton City Council","http://opendatacommunities.org/id/metropolitan-district-council/wolverhampton","Bbp.Security Services & Training Limited","957CIV121115","8,699.69","Services - Security","130097180","03/12/2015","Visitor Economy","Civic & Wulfrun Outhouse & Other Comercial Events","R4405"
"Wolverhampton City Council","http://opendatacommunities.org/id/metropolitan-district-council/wolverhampton","Bbp.Security Services & Training Limited","024WCC241115","315","Services - Security","130096692","03/12/2015","Culture Arts & Heritage","Bantock House Museum","R4405"
"Wolverhampton City Council","http://opendatacommunities.org/id/metropolitan-district-council/wolverhampton","Bbp.Security Services & Training Limited","960CIV091215","12,313.32","Services - Security","130100514","22/12/2015","Visitor Economy","Civic & Wulfrun Outhouse & Other Comercial Events","R4405"
"Wolverhampton City Council","http://opendatacommunities.org/id/metropolitan-district-council/wolverhampton","Bbp.Security Services & Training Limited","008FM181215","2,175.00","Services - Security","130100375","22/12/2015","Cleaning & Caretaking Service","Schools Cleaning","R4405"
"Wolverhampton City Council","http://opendatacommunities.org/id/metropolitan-district-council/wolverhampton","Bbp.Security Services & Training Limited","009FM181215","3,255.00","Services - Security","130100376","22/12/2015","Cleaning & Caretaking Service","Parkfields Office Accomodation","R4405"
"Wolverhampton City Council","http://opendatacommunities.org/id/metropolitan-district-council/wolverhampton","Bbp.Security Services & Training Limited","959CIV261115OE","1,226.52","Services - Security","130098063","09/12/2015","Visitor Economy","Bonfire","R4405"
"Wolverhampton City Council","http://opendatacommunities.org/id/metropolitan-district-council/wolverhampton","Bbp.Security Services & Training Limited","533SAT071215","290","Services - Security","130098535","16/12/2015","Engineering & Civic Centre","Management of Vacant Properties","R4405"
"Wolverhampton City Council","http://opendatacommunities.org/id/metropolitan-district-council/wolverhampton","Bbp.Security Services & Training Limited","535SAT091215","300","Services - Security","130098986","16/12/2015","Engineering & Civic Centre","Management of Vacant Properties","R4405"
"Wolverhampton City Council","http://opendatacommunities.org/id/metropolitan-district-council/wolverhampton","Bbp.Security Services & Training Limited","536SAT091215","1,200.00","Services - Security","130098987","16/12/2015","Engineering & Civic Centre","Management of Vacant Properties","R4405"
"Wolverhampton City Council","http://opendatacommunities.org/id/metropolitan-district-council/wolverhampton","Bbp.Security Services & Training Limited","961CIV091215","5,268.77","Services - Security","130099249","16/12/2015","Visitor Economy","Civic & Wulfrun In-House Promotions","R4405"
"Wolverhampton City Council","http://opendatacommunities.org/id/metropolitan-district-council/wolverhampton","Bbp.Security Services & Training Limited","958LCIV091215","1,982.26","Services - Security","130099248","16/12/2015","Visitor Economy","The Little Civic","R4405"
"Wolverhampton City Council","http://opendatacommunities.org/id/metropolitan-district-council/wolverhampton","Bbp.Security Services & Training Limited","963CIV141215OE","286.91","Services - Security","130099714","18/12/2015","Culture Arts & Heritage","Bantock House Museum","R4405"
"Wolverhampton City Council","http://opendatacommunities.org/id/metropolitan-district-council/wolverhampton","Bbp.Security Services & Training Limited","964CIV141215","1,027.08","Services - Security","130099715","18/12/2015","Culture Arts & Heritage","Art Gallery","R4405"
"Wolverhampton City Council","http://opendatacommunities.org/id/metropolitan-district-council/wolverhampton","BCC Mac T/A St Teresa�S Catholic","St Teresa dsc mls Sept 15","48.46","School Meals","190182156","03/12/2015","Schools","Discounted School Meals Scheme","R4103"
"Wolverhampton City Council","http://opendatacommunities.org/id/metropolitan-district-council/wolverhampton","BCC Mac T/A St Teresa�S Catholic","St Teresa dsc mls Oct 15","33.74","School Meals","190182127","03/12/2015","Schools","Discounted School Meals Scheme","R4103"
"Wolverhampton City Council","http://opendatacommunities.org/id/metropolitan-district-council/wolverhampton","Bearing Man Limited","502755 - 00","76.88","Materials","130098236","22/12/2015","Engineering & Civic Centre","Civic Centre","R4007"
"Wolverhampton City Council","http://opendatacommunities.org/id/metropolitan-district-council/wolverhampton","Berrymans Lace Mawer","2102482","155","Insurance - General","130095038","03/12/2015","Audit Services","Legal Liability","R4962"
"Wolverhampton City Council","http://opendatacommunities.org/id/metropolitan-district-council/wolverhampton","Berrymans Lace Mawer","2102482","2,729.45","Insurance - General","130095038","03/12/2015","Audit Services","Legal Liability","R4962"
"Wolverhampton City Council","http://opendatacommunities.org/id/metropolitan-district-council/wolverhampton","Berrymans Lace Mawer","2102483","357.5","Insurance - General","130095039","03/12/2015","Audit Services","Wolverhampton Homes Claims","R4962"
"Wolverhampton City Council","http://opendatacommunities.org/id/metropolitan-district-council/wolverhampton","Bertram Trading Limited(Library Serv)","2150587","113.34","Books","130094286","16/12/2015","Library Services","Global Budgets","R4309"
"Wolverhampton City Council","http://opendatacommunities.org/id/metropolitan-district-council/wolverhampton","Beverages Direct Limited","675362","156.53","Provisions (Resale)","130097310","03/12/2015","Catering","Education Catering - General Overheads","R4102"
"Wolverhampton City Council","http://opendatacommunities.org/id/metropolitan-district-council/wolverhampton","Beverages Direct Limited","675362","-156.53","Provisions (Resale)","130097310","03/12/2015","Catering","Education Catering - General Overheads","R4102"
"Wolverhampton City Council","http://opendatacommunities.org/id/metropolitan-district-council/wolverhampton","Beverages Direct Limited","675362","70.04","Provisions (Resale)","130097310","03/12/2015","Catering","Education Catering - General Overheads","R4102"
"Wolverhampton City Council","http://opendatacommunities.org/id/metropolitan-district-council/wolverhampton","Beverages Direct Limited","675362","86.49","Provisions (Resale)","130097310","03/12/2015","Catering","Education Catering - General Overheads","R4102"
"Wolverhampton City Council","http://opendatacommunities.org/id/metropolitan-district-council/wolverhampton","Beverages Direct Limited","677239","191.01","Provisions (Resale)","130097311","03/12/2015","Catering","Education Catering - General Overheads","R4102"
"Wolverhampton City Council","http://opendatacommunities.org/id/metropolitan-district-council/wolverhampton","Beverages Direct Limited","677239","-191.01","Provisions (Resale)","130097311","03/12/2015","Catering","Education Catering - General Overheads","R4102"
"Wolverhampton City Council","http://opendatacommunities.org/id/metropolitan-district-council/wolverhampton","Beverages Direct Limited","677239","104.52","Provisions (Resale)","130097311","03/12/2015","Catering","Education Catering - General Overheads","R4102"
"Wolverhampton City Council","http://opendatacommunities.org/id/metropolitan-district-council/wolverhampton","Beverages Direct Limited","677239","86.49","Provisions (Resale)","130097311","03/12/2015","Catering","Education Catering - General Overheads","R4102"
"Wolverhampton City Council","http://opendatacommunities.org/id/metropolitan-district-council/wolverhampton","Beverages Direct Limited","677303","610.53","Provisions (Resale)","130100287","29/12/2015","Catering","Education Catering - General Overheads","R4102"
"Wolverhampton City Council","http://opendatacommunities.org/id/metropolitan-district-council/wolverhampton","Beverages Direct Limited","677303","-610.53","Provisions (Resale)","130100287","29/12/2015","Catering","Education Catering - General Overheads","R4102"
"Wolverhampton City Council","http://opendatacommunities.org/id/metropolitan-district-council/wolverhampton","Beverages Direct Limited","677303","72.96","Provisions (Resale)","130100287","29/12/2015","Catering","Education Catering - General Overheads","R4102"
"Wolverhampton City Council","http://opendatacommunities.org/id/metropolitan-district-council/wolverhampton","Beverages Direct Limited","677303","537.57","Provisions (Resale)","130100287","29/12/2015","Catering","Education Catering - General Overheads","R4102"
"Wolverhampton City Council","http://opendatacommunities.org/id/metropolitan-district-council/wolverhampton","Bilston Resource Centre","42","5,846.13","Grant Payments","130094687","03/12/2015","Adult Education","NESS Neigh/hood Employment & Skills Serv","R4700"
"Wolverhampton City Council","http://opendatacommunities.org/id/metropolitan-district-council/wolverhampton","Bilston Resource Centre","43","6,075.11","Grant Payments","130098137","29/12/2015","Adult Education","NESS Neigh/hood Employment & Skills Serv","R4700"
"Wolverhampton City Council","http://opendatacommunities.org/id/metropolitan-district-council/wolverhampton","Black Country Chamber Of Commerce","36119","300","Subscriptions","130097477","07/12/2015","Enterprise & Skills","International Trade","R4701"
"Wolverhampton City Council","http://opendatacommunities.org/id/metropolitan-district-council/wolverhampton","Black Country Partnership NHS Ft","3100000554","8,986.33","TPP - Social Care Support Services","130095071","03/12/2015","Mental Health Commissioning","Child & Adolescent Mental Health Service","R5501"
"Wolverhampton City Council","http://opendatacommunities.org/id/metropolitan-district-council/wolverhampton","Black Country Partnership NHS Ft","3100000553","13,855.33","TPP - Social Care Support Services","130095070","03/12/2015","Mental Health Commissioning","Child & Adolescent Mental Health Service","R5501"
"Wolverhampton City Council","http://opendatacommunities.org/id/metropolitan-district-council/wolverhampton","Black Country Partnership NHS Ft","3100000552","15,282.08","TPP - Social Care Support Services","130095069","03/12/2015","Mental Health Commissioning","Child & Adolescent Mental Health Service","R5501"
"Wolverhampton City Council","http://opendatacommunities.org/id/metropolitan-district-council/wolverhampton","Blakenhall Neighbourhood Nursery","3319","216","TPP - Child Care provided for client","130097292","22/12/2015","Adult Education","Discretionary Fund","R5034"
"Wolverhampton City Council","http://opendatacommunities.org/id/metropolitan-district-council/wolverhampton","Blakenhall Neighbourhood Nursery","3318","70","TPP - Child Care provided for client","130097291","22/12/2015","Adult Education","Discretionary Fund","R5034"
"Wolverhampton City Council","http://opendatacommunities.org/id/metropolitan-district-council/wolverhampton","Blakenhall Neighbourhood Nursery","3320","216","TPP - Child Care provided for client","130097293","22/12/2015","Adult Education","Discretionary Fund","R5034"
"Wolverhampton City Council","http://opendatacommunities.org/id/metropolitan-district-council/wolverhampton","Blakenhall Neighbourhood Nursery","EYPP Autumn 2015","556.5","TPP - Private Nursery Education Funding","190190060","22/12/2015","Childrens Centres & Early Years","Early Years Non Maintained Schools","R5035"
"Wolverhampton City Council","http://opendatacommunities.org/id/metropolitan-district-council/wolverhampton","Blakenhall Neighbourhood Nursery","NEF Aut 2015 Inst 2","8,870.84","TPP - Private Nursery Education Funding","190188598","18/12/2015","Childrens Centres & Early Years","Early Years Non Maintained Schools","R5035"
"Wolverhampton City Council","http://opendatacommunities.org/id/metropolitan-district-council/wolverhampton","Blakenhall Neighbourhood Nursery","2973","96","TPP - Child Care provided for client","130098484","16/12/2015","Adult Education","Discretionary Fund","R5034"
"Wolverhampton City Council","http://opendatacommunities.org/id/metropolitan-district-council/wolverhampton","Blakenhall Neighbourhood Nursery","T42 Aut 2015 Inst 2","23,015.00","Grant Payments","190187978","16/12/2015","Childrens Centres & Early Years","2 Year Olds Pilot - Early Learning & Childcare","R4700"
"Wolverhampton City Council","http://opendatacommunities.org/id/metropolitan-district-council/wolverhampton","Blue Group Interntl Limited T/A Bluecare","HSOC5526117","1,350.50","Agency Staff","130097195","22/12/2015","Looked After Children","Adoption and Residence Team & Allowances","R1100"
"Wolverhampton City Council","http://opendatacommunities.org/id/metropolitan-district-council/wolverhampton","Blue Group Interntl Limited T/A Bluecare","HSOC5527603","1,110.00","Agency Staff","130097812","22/12/2015","Looked After Children","Fostering Team & Allowances","R1100"
"Wolverhampton City Council","http://opendatacommunities.org/id/metropolitan-district-council/wolverhampton","Blue Group Interntl Limited T/A Bluecare","HSOC5527602","1,350.50","Agency Staff","130097811","22/12/2015","Looked After Children","Adoption and Residence Team & Allowances","R1100"
"Wolverhampton City Council","http://opendatacommunities.org/id/metropolitan-district-council/wolverhampton","Blue Group Interntl Limited T/A Bluecare","HSOC5527604","14.4","Agency Staff","130097813","22/12/2015","Looked After Children","Fostering Team & Allowances","R1100"
"Wolverhampton City Council","http://opendatacommunities.org/id/metropolitan-district-council/wolverhampton","Blue Group Interntl Limited T/A Bluecare","HSOC5527599","37.8","Agency Staff","130097808","22/12/2015","Looked After Children","Adoption and Residence Team & Allowances","R1100"
"Wolverhampton City Council","http://opendatacommunities.org/id/metropolitan-district-council/wolverhampton","Blue Group Interntl Limited T/A Bluecare","HSOC5527109","1,184.00","Agency Staff","130097713","22/12/2015","Children in Need & Child Protection","Eastfield 2 - CIN  Social Work Unit - S17","R1100"
"Wolverhampton City Council","http://opendatacommunities.org/id/metropolitan-district-council/wolverhampton","Blue Group Interntl Limited T/A Bluecare","HSOC5527600","1,020.00","Agency Staff","130097809","22/12/2015","Children in Need & Child Protection","CIN Agency","R1100"
"Wolverhampton City Council","http://opendatacommunities.org/id/metropolitan-district-council/wolverhampton","Blue Group Interntl Limited T/A Bluecare","HSOC5527601","37.8","Agency Staff","130097810","22/12/2015","Children in Need & Child Protection","CIN Agency","R1100"
"Wolverhampton City Council","http://opendatacommunities.org/id/metropolitan-district-council/wolverhampton","Blue Group Interntl Limited T/A Bluecare","HSOC5527605","1,020.00","Agency Staff","130097814","22/12/2015","Children in Need & Child Protection","CIN Agency","R1100"
"Wolverhampton City Council","http://opendatacommunities.org/id/metropolitan-district-council/wolverhampton","Blue Group Interntl Limited T/A Bluecare","HSOC5527606","1,369.00","Agency Staff","130097815","22/12/2015","Children in Need & Child Protection","CIN Agency","R1100"
"Wolverhampton City Council","http://opendatacommunities.org/id/metropolitan-district-council/wolverhampton","Blue Group Interntl Limited T/A Bluecare","HSOC5527110","1,332.00","Agency Staff","130097714","22/12/2015","Children in Need & Child Protection","CIN - Warstones MAST - Area 4","R1100"
"Wolverhampton City Council","http://opendatacommunities.org/id/metropolitan-district-council/wolverhampton","Blue Group Interntl Limited T/A Bluecare","HSOC5521800","1,369.00","Agency Staff","130094903","07/12/2015","Children in Need & Child Protection","CIN Agency","R1100"
"Wolverhampton City Council","http://opendatacommunities.org/id/metropolitan-district-council/wolverhampton","Blue Group Interntl Limited T/A Bluecare","HSOC5522302","1,110.00","Agency Staff","130095180","07/12/2015","Looked After Children","Fostering Team & Allowances","R1100"
"Wolverhampton City Council","http://opendatacommunities.org/id/metropolitan-district-council/wolverhampton","Blue Group Interntl Limited T/A Bluecare","HSOC5522303","33.3","Agency Staff","130095181","07/12/2015","Looked After Children","Fostering Team & Allowances","R1100"
"Wolverhampton City Council","http://opendatacommunities.org/id/metropolitan-district-council/wolverhampton","Blue Group Interntl Limited T/A Bluecare","HSOC5521798","1,184.00","Agency Staff","130094901","07/12/2015","Children in Need & Child Protection","Eastfield 2 - CIN  Social Work Unit - S17","R1100"
"Wolverhampton City Council","http://opendatacommunities.org/id/metropolitan-district-council/wolverhampton","Blue Group Interntl Limited T/A Bluecare","HSOC5521799","1,332.00","Agency Staff","130094902","07/12/2015","Children in Need & Child Protection","CIN - Warstones MAST - Area 4","R1100"
"Wolverhampton City Council","http://opendatacommunities.org/id/metropolitan-district-council/wolverhampton","Blue Group Interntl Limited T/A Bluecare","HSOC5520922","565.5","Agency Staff","130094635","03/12/2015","Looked After Children","Fostering Team & Allowances","R1100"
"Wolverhampton City Council","http://opendatacommunities.org/id/metropolitan-district-council/wolverhampton","Blue Group Interntl Limited T/A Bluecare","HSOC5520678","1,184.00","Agency Staff","130094449","03/12/2015","Children in Need & Child Protection","Eastfield 2 - CIN  Social Work Unit - S17","R1100"
"Wolverhampton City Council","http://opendatacommunities.org/id/metropolitan-district-council/wolverhampton","Blue Group Interntl Limited T/A Bluecare","HSOC5520676","4.5","Agency Staff","130094447","03/12/2015","Children in Need & Child Protection","CIN Agency","R1100"
"Wolverhampton City Council","http://opendatacommunities.org/id/metropolitan-district-council/wolverhampton","Blue Group Interntl Limited T/A Bluecare","HSOC5520677","6.25","Agency Staff","130094448","03/12/2015","Children in Need & Child Protection","CIN Agency","R1100"
"Wolverhampton City Council","http://opendatacommunities.org/id/metropolitan-district-council/wolverhampton","Blue Group Interntl Limited T/A Bluecare","HSOC5520675","142.02","Agency Staff","130094446","03/12/2015","Children in Need & Child Protection","CIN Agency","R1100"
"Wolverhampton City Council","http://opendatacommunities.org/id/metropolitan-district-council/wolverhampton","Blue Group Interntl Limited T/A Bluecare","HSOC5355368","34.2","Agency Staff","130041575","09/12/2015","Children in Need & Child Protection","CIN - Warstones MAST - Area 4","R1100"
"Wolverhampton City Council","http://opendatacommunities.org/id/metropolitan-district-council/wolverhampton","Blue Group Interntl Limited T/A Bluecare","HSOC5416548","21.6","Agency Staff","130076844","09/12/2015","Children in Need & Child Protection","CIN - Warstones MAST - Area 4","R1100"
"Wolverhampton City Council","http://opendatacommunities.org/id/metropolitan-district-council/wolverhampton","Blue Group Interntl Limited T/A Bluecare","HSOC5517580","1,369.00","Agency Staff","130098296","09/12/2015","Children in Need & Child Protection","CIN Agency","R1100"
"Wolverhampton City Council","http://opendatacommunities.org/id/metropolitan-district-council/wolverhampton","Blue Group Interntl Limited T/A Bluecare","HSOC5514265","1,369.00","Agency Staff","130098294","09/12/2015","Children in Need & Child Protection","CIN Agency","R1100"
"Wolverhampton City Council","http://opendatacommunities.org/id/metropolitan-district-council/wolverhampton","Blue Group Interntl Limited T/A Bluecare","HSOC5516825","1,369.00","Agency Staff","130098295","09/12/2015","Children in Need & Child Protection","CIN Agency","R1100"
"Wolverhampton City Council","http://opendatacommunities.org/id/metropolitan-district-council/wolverhampton","Blue Group Interntl Limited T/A Bluecare","HSOC5522502","1,350.50","Agency Staff","130095315","09/12/2015","Looked After Children","Adoption and Residence Team & Allowances","R1100"
"Wolverhampton City Council","http://opendatacommunities.org/id/metropolitan-district-council/wolverhampton","Blue Group Interntl Limited T/A Bluecare","HSOC5522505","1,350.50","Agency Staff","130095318","09/12/2015","Looked After Children","Adoption and Residence Team & Allowances","R1100"
"Wolverhampton City Council","http://opendatacommunities.org/id/metropolitan-district-council/wolverhampton","Blue Group Interntl Limited T/A Bluecare","HSOC5522501","67","Agency Staff","130095314","09/12/2015","Looked After Children","Adoption and Residence Team & Allowances","R1100"
"Wolverhampton City Council","http://opendatacommunities.org/id/metropolitan-district-council/wolverhampton","Blue Group Interntl Limited T/A Bluecare","HSOC5522503","1,369.00","Agency Staff","130095316","09/12/2015","Children in Need & Child Protection","CIN Agency","R1100"
"Wolverhampton City Council","http://opendatacommunities.org/id/metropolitan-district-council/wolverhampton","Blue Group Interntl Limited T/A Bluecare","HSOC5522507","9.45","Agency Staff","130095320","09/12/2015","Children in Need & Child Protection","CIN Agency","R1100"
"Wolverhampton City Council","http://opendatacommunities.org/id/metropolitan-district-council/wolverhampton","Blue Group Interntl Limited T/A Bluecare","HSOC5522506","1,369.00","Agency Staff","130095319","09/12/2015","Children in Need & Child Protection","CIN Agency","R1100"
"Wolverhampton City Council","http://opendatacommunities.org/id/metropolitan-district-council/wolverhampton","Blue Group Interntl Limited T/A Bluecare","HSOC5522504","11.25","Agency Staff","130095317","09/12/2015","Children in Need & Child Protection","CIN Agency","R1100"
"Wolverhampton City Council","http://opendatacommunities.org/id/metropolitan-district-council/wolverhampton","Blue Group Interntl Limited T/A Bluecare","HSOC5513833","1,369.00","Agency Staff","130098293","09/12/2015","Children in Need & Child Protection","CIN Agency","R1100"
"Wolverhampton City Council","http://opendatacommunities.org/id/metropolitan-district-council/wolverhampton","Blue Group Interntl Limited T/A Bluecare","HSOC5431905","307.26","Agency Staff","130098587","09/12/2015","Older People Assessment & Care Management","Assessment Team (East)","R1100"
"Wolverhampton City Council","http://opendatacommunities.org/id/metropolitan-district-council/wolverhampton","Blue Group Interntl Limited T/A Bluecare","HSOC5525013","156","Agency Staff","130096779","18/12/2015","Looked After Children","Fostering Team & Allowances","R1100"
"Wolverhampton City Council","http://opendatacommunities.org/id/metropolitan-district-council/wolverhampton","Blue Group Interntl Limited T/A Bluecare","HSOC5517581","1,332.00","Agency Staff","130092976","18/12/2015","Children in Need & Child Protection","CIN - Warstones MAST - Area 4","R1100"
"Wolverhampton City Council","http://opendatacommunities.org/id/metropolitan-district-council/wolverhampton","Blue Group Interntl Limited T/A Bluecare","HSOC5524110","1,332.00","Agency Staff","130096033","18/12/2015","Children in Need & Child Protection","CIN - Warstones MAST - Area 4","R1100"
"Wolverhampton City Council","http://opendatacommunities.org/id/metropolitan-district-council/wolverhampton","Blue Group Interntl Limited T/A Bluecare","HSOC5523230","1,369.00","Agency Staff","130095684","11/12/2015","Children in Need & Child Protection","CIN Agency","R1100"
"Wolverhampton City Council","http://opendatacommunities.org/id/metropolitan-district-council/wolverhampton","Blue Group Interntl Limited T/A Bluecare","HSOC5523231","4.95","Agency Staff","130095685","11/12/2015","Children in Need & Child Protection","CIN Agency","R1100"
"Wolverhampton City Council","http://opendatacommunities.org/id/metropolitan-district-council/wolverhampton","Blue Group Interntl Limited T/A Bluecare","HSOC5524270","1,020.00","Agency Staff","130096341","16/12/2015","Children in Need & Child Protection","CIN Agency","R1100"
"Wolverhampton City Council","http://opendatacommunities.org/id/metropolitan-district-council/wolverhampton","Blue Group Interntl Limited T/A Bluecare","HSOC5524473","23.85","Agency Staff","130096488","16/12/2015","Children in Need & Child Protection","CIN Agency","R1100"
"Wolverhampton City Council","http://opendatacommunities.org/id/metropolitan-district-council/wolverhampton","Blue Group Interntl Limited T/A Bluecare","HSOC5524475","1,184.00","Agency Staff","130096490","16/12/2015","Children in Need & Child Protection","Eastfield 2 - CIN  Social Work Unit - S17","R1100"
"Wolverhampton City Council","http://opendatacommunities.org/id/metropolitan-district-council/wolverhampton","Blue Group Interntl Limited T/A Bluecare","HSOC5524269","31.95","Agency Staff","130096340","16/12/2015","Children in Need & Child Protection","CIN Agency","R1100"
"Wolverhampton City Council","http://opendatacommunities.org/id/metropolitan-district-council/wolverhampton","Blue Group Interntl Limited T/A Bluecare","HSOC5524474","1,350.50","Agency Staff","130096489","16/12/2015","Looked After Children","Adoption and Residence Team & Allowances","R1100"
"Wolverhampton City Council","http://opendatacommunities.org/id/metropolitan-district-council/wolverhampton","Blue Group Interntl Limited T/A Bluecare","HSOC5524109","565.5","Agency Staff","130096032","16/12/2015","Looked After Children","Fostering Team & Allowances","R1100"
"Wolverhampton City Council","http://opendatacommunities.org/id/metropolitan-district-council/wolverhampton","Blue Group Interntl Limited T/A Bluecare","HSOC5524268","1,020.00","Agency Staff","130096339","16/12/2015","Children in Need & Child Protection","CIN Agency","R1100"
"Wolverhampton City Council","http://opendatacommunities.org/id/metropolitan-district-council/wolverhampton","Blue Group Interntl Limited T/A Bluecare","HSOC5524107","1,110.00","Agency Staff","130096030","16/12/2015","Looked After Children","Fostering Team & Allowances","R1100"
"Wolverhampton City Council","http://opendatacommunities.org/id/metropolitan-district-council/wolverhampton","Blue Group Interntl Limited T/A Bluecare","HSOC5524108","46.58","Agency Staff","130096031","16/12/2015","Looked After Children","Fostering Team & Allowances","R1100"
"Wolverhampton City Council","http://opendatacommunities.org/id/metropolitan-district-council/wolverhampton","Blue Group Interntl Limited T/A Bluecare","HSOC5524111","1,369.00","Agency Staff","130096034","16/12/2015","Children in Need & Child Protection","CIN Agency","R1100"
"Wolverhampton City Council","http://opendatacommunities.org/id/metropolitan-district-council/wolverhampton","Blue Group Interntl Limited T/A Bluecare","HSOC5524106","565.5","Agency Staff","130096029","16/12/2015","Looked After Children","Fostering Team & Allowances","R1100"
"Wolverhampton City Council","http://opendatacommunities.org/id/metropolitan-district-council/wolverhampton","Blue Group Interntl Limited T/A Bluecare","HSOC5525356","1,369.00","Agency Staff","130096783","18/12/2015","Children in Need & Child Protection","CIN Agency","R1100"
"Wolverhampton City Council","http://opendatacommunities.org/id/metropolitan-district-council/wolverhampton","Blue Group Interntl Limited T/A Bluecare","HSOC5525357","9.9","Agency Staff","130096784","18/12/2015","Children in Need & Child Protection","CIN Agency","R1100"
"Wolverhampton City Council","http://opendatacommunities.org/id/metropolitan-district-council/wolverhampton","Blue Group Interntl Limited T/A Bluecare","HSOC5525353","1,332.00","Agency Staff","130096780","18/12/2015","Children in Need & Child Protection","CIN - Warstones MAST - Area 4","R1100"
"Wolverhampton City Council","http://opendatacommunities.org/id/metropolitan-district-council/wolverhampton","Blue Group Interntl Limited T/A Bluecare","HSOC5525354","1,110.00","Agency Staff","130096781","18/12/2015","Looked After Children","Fostering Team & Allowances","R1100"
"Wolverhampton City Council","http://opendatacommunities.org/id/metropolitan-district-council/wolverhampton","Blue Group Interntl Limited T/A Bluecare","HSOC5525355","22.05","Agency Staff","130096782","18/12/2015","Looked After Children","Fostering Team & Allowances","R1100"
"Wolverhampton City Council","http://opendatacommunities.org/id/metropolitan-district-council/wolverhampton","Blue Group Interntl Limited T/A Bluecare","HSOC5525358","1,184.00","Agency Staff","130096785","18/12/2015","Children in Need & Child Protection","Eastfield 2 - CIN  Social Work Unit - S17","R1100"
"Wolverhampton City Council","http://opendatacommunities.org/id/metropolitan-district-council/wolverhampton","Blue Group Interntl Limited T/A Bluecare","HSOC5525867","1,369.00","Agency Staff","130096945","18/12/2015","Children in Need & Child Protection","CIN Agency","R1100"
"Wolverhampton City Council","http://opendatacommunities.org/id/metropolitan-district-council/wolverhampton","Blue Mountain Foods Limited","6573","294","Provisions (Resale)","130097653","22/12/2015","Catering","Meals on Wheels","R4102"
"Wolverhampton City Council","http://opendatacommunities.org/id/metropolitan-district-council/wolverhampton","Blue Mountain Foods Limited","6568","38","Provisions (Resale)","130097648","22/12/2015","Catering","Education Catering - General Overheads","R4102"
"Wolverhampton City Council","http://opendatacommunities.org/id/metropolitan-district-council/wolverhampton","Blue Mountain Foods Limited","6569","38","Provisions (Resale)","130097649","22/12/2015","Catering","Education Catering - General Overheads","R4102"
"Wolverhampton City Council","http://opendatacommunities.org/id/metropolitan-district-council/wolverhampton","Blue Mountain Foods Limited","6567","57","Provisions (Resale)","130097647","22/12/2015","Catering","Education Catering - General Overheads","R4102"
"Wolverhampton City Council","http://opendatacommunities.org/id/metropolitan-district-council/wolverhampton","Blue Mountain Foods Limited","6571","76","Provisions (Resale)","130097651","22/12/2015","Catering","Education Catering - General Overheads","R4102"
"Wolverhampton City Council","http://opendatacommunities.org/id/metropolitan-district-council/wolverhampton","Blue Mountain Foods Limited","6574","19","Provisions (Resale)","130097654","22/12/2015","Catering","Education Catering - General Overheads","R4102"
"Wolverhampton City Council","http://opendatacommunities.org/id/metropolitan-district-council/wolverhampton","Blue Mountain Foods Limited","6576","76","Provisions (Resale)","130097656","22/12/2015","Catering","Education Catering - General Overheads","R4102"
"Wolverhampton City Council","http://opendatacommunities.org/id/metropolitan-district-council/wolverhampton","Blue Mountain Foods Limited","6575","76","Provisions (Resale)","130097655","22/12/2015","Catering","Education Catering - General Overheads","R4102"
"Wolverhampton City Council","http://opendatacommunities.org/id/metropolitan-district-council/wolverhampton","Blue Mountain Foods Limited","6582","38","Provisions (Resale)","130097662","22/12/2015","Catering","Education Catering - General Overheads","R4102"
"Wolverhampton City Council","http://opendatacommunities.org/id/metropolitan-district-council/wolverhampton","Blue Mountain Foods Limited","6581","19","Provisions (Resale)","130097661","22/12/2015","Catering","Education Catering - General Overheads","R4102"
"Wolverhampton City Council","http://opendatacommunities.org/id/metropolitan-district-council/wolverhampton","Blue Mountain Foods Limited","6578","38","Provisions (Resale)","130097658","22/12/2015","Catering","Education Catering - General Overheads","R4102"
"Wolverhampton City Council","http://opendatacommunities.org/id/metropolitan-district-council/wolverhampton","Blue Mountain Foods Limited","6577","38","Provisions (Resale)","130097657","22/12/2015","Catering","Education Catering - General Overheads","R4102"
"Wolverhampton City Council","http://opendatacommunities.org/id/metropolitan-district-council/wolverhampton","Blue Mountain Foods Limited","6572","38","Provisions (Resale)","130097652","22/12/2015","Catering","Meals on Wheels","R4102"
"Wolverhampton City Council","http://opendatacommunities.org/id/metropolitan-district-council/wolverhampton","Blue Mountain Foods Limited","6570","19","Provisions (Resale)","130097650","22/12/2015","Catering","Education Catering - General Overheads","R4102"
"Wolverhampton City Council","http://opendatacommunities.org/id/metropolitan-district-council/wolverhampton","Blue Mountain Foods Limited","6583","59.52","Provisions (Resale)","130097663","22/12/2015","Catering","Education Catering - General Overheads","R4102"
"Wolverhampton City Council","http://opendatacommunities.org/id/metropolitan-district-council/wolverhampton","Blue Mountain Foods Limited","6584","76","Provisions (Resale)","130097664","22/12/2015","Catering","Education Catering - General Overheads","R4102"
"Wolverhampton City Council","http://opendatacommunities.org/id/metropolitan-district-council/wolverhampton","Blue Mountain Foods Limited","6518","214","Provisions (Resale)","130092298","16/12/2015","Catering","Education Catering - General Overheads","R4102"
"Wolverhampton City Council","http://opendatacommunities.org/id/metropolitan-district-council/wolverhampton","Blue Mountain Foods Limited","6535","476","Provisions (Resale)","130093446","16/12/2015","Catering","Meals on Wheels","R4102"
"Wolverhampton City Council","http://opendatacommunities.org/id/metropolitan-district-council/wolverhampton","Blue Mountain Foods Limited","6579","35","Provisions (Resale)","130097659","29/12/2015","Older People Provider Services","Nelson Mandela House","R4102"
"Wolverhampton City Council","http://opendatacommunities.org/id/metropolitan-district-council/wolverhampton","Blue Mountain Foods Limited","6580","19","Provisions (Resale)","130097660","29/12/2015","Older People Provider Services","Nelson Mandela House","R4102"
"Wolverhampton City Council","http://opendatacommunities.org/id/metropolitan-district-council/wolverhampton","BME Travel","1599","2,100.00","Client Transport","130097763","22/12/2015","School Planning & Resources","Special - Transport","R3042"
"Wolverhampton City Council","http://opendatacommunities.org/id/metropolitan-district-council/wolverhampton","Boc Limited","3033165309","155.42","Equipment - Purchase","130098202","22/12/2015","Visitor Economy","Catering Overhead Account","R4000"
"Wolverhampton City Council","http://opendatacommunities.org/id/metropolitan-district-council/wolverhampton","Boc Limited","3033110253","78.78","Equipment - Purchase","130098201","22/12/2015","Visitor Economy","Catering Overhead Account","R4000"
"Wolverhampton City Council","http://opendatacommunities.org/id/metropolitan-district-council/wolverhampton","Boc Limited","3033095082","208.95","Materials","130098962","22/12/2015","HR Advice","HR Advice","R4007"
"Wolverhampton City Council","http://opendatacommunities.org/id/metropolitan-district-council/wolverhampton","Boc Limited","3032965553","78.84","Gas","130096173","07/12/2015","Visitor Economy","The Little Civic","R2101"
"Wolverhampton City Council","http://opendatacommunities.org/id/metropolitan-district-council/wolverhampton","Boc Limited","3032980326","173.7","Equipment - Hire","130095961","09/12/2015","Visitor Economy","Catering Overhead Account","R4001"
"Wolverhampton City Council","http://opendatacommunities.org/id/metropolitan-district-council/wolverhampton","Boc Limited","3033043718","203.11","Equipment - Purchase","130097105","18/12/2015","Visitor Economy","Catering Overhead Account","R4000"
"Wolverhampton City Council","http://opendatacommunities.org/id/metropolitan-district-council/wolverhampton","Boningale Nurseries","348645","240","Materials","130097117","07/12/2015","Environmental Maintenance","Ground Maintenance East","R4007"
"Wolverhampton City Council","http://opendatacommunities.org/id/metropolitan-district-council/wolverhampton","Booker Cash & Carry Limited","201288","17.96","Provisions (Resale)","130097866","09/12/2015","Visitor Economy","Catering Overhead Account","R4102"
"Wolverhampton City Council","http://opendatacommunities.org/id/metropolitan-district-council/wolverhampton","Booker Cash & Carry Limited","201288","197.99","Provisions (Resale)","130097866","09/12/2015","Visitor Economy","Catering Overhead Account","R4102"
"Wolverhampton City Council","http://opendatacommunities.org/id/metropolitan-district-council/wolverhampton","Booker Cash & Carry Limited","431196","149.93","Provisions (Resale)","130097881","09/12/2015","Visitor Economy","Catering Overhead Account","R4102"
"Wolverhampton City Council","http://opendatacommunities.org/id/metropolitan-district-council/wolverhampton","Booker Cash & Carry Limited","431196","132.41","Provisions (Resale)","130097881","09/12/2015","Visitor Economy","Catering Overhead Account","R4102"
"Wolverhampton City Council","http://opendatacommunities.org/id/metropolitan-district-council/wolverhampton","Booker Cash & Carry Limited","201390","1,046.44","Provisions (Resale)","130097867","09/12/2015","Visitor Economy","Catering Overhead Account","R4102"
"Wolverhampton City Council","http://opendatacommunities.org/id/metropolitan-district-council/wolverhampton","Booker Cash & Carry Limited","201390","-1,046.44","Provisions (Resale)","130097867","09/12/2015","Visitor Economy","Catering Overhead Account","R4102"
"Wolverhampton City Council","http://opendatacommunities.org/id/metropolitan-district-council/wolverhampton","Booker Cash & Carry Limited","201390","903.37","Provisions (Resale)","130097867","09/12/2015","Visitor Economy","Catering Overhead Account","R4102"
"Wolverhampton City Council","http://opendatacommunities.org/id/metropolitan-district-council/wolverhampton","Booker Cash & Carry Limited","201390","143.07","Provisions (Resale)","130097867","09/12/2015","Visitor Economy","Catering Overhead Account","R4102"
"Wolverhampton City Council","http://opendatacommunities.org/id/metropolitan-district-council/wolverhampton","Booker Cash & Carry Limited","202334","233.74","Provisions (Resale)","130098114","18/12/2015","Visitor Economy","Catering Overhead Account","R4102"
"Wolverhampton City Council","http://opendatacommunities.org/id/metropolitan-district-council/wolverhampton","Booker Cash & Carry Limited","202334","-233.74","Provisions (Resale)","130098114","18/12/2015","Visitor Economy","Catering Overhead Account","R4102"
"Wolverhampton City Council","http://opendatacommunities.org/id/metropolitan-district-council/wolverhampton","Booker Cash & Carry Limited","202334","233.74","Provisions (Resale)","130098114","18/12/2015","Visitor Economy","Catering Overhead Account","R4102"
"Wolverhampton City Council","http://opendatacommunities.org/id/metropolitan-district-council/wolverhampton","Booker Cash & Carry Limited","202336","0.59","Provisions (Resale)","130098115","18/12/2015","Visitor Economy","Catering Overhead Account","R4102"
"Wolverhampton City Council","http://opendatacommunities.org/id/metropolitan-district-council/wolverhampton","Boulton Travel Limited","BTWCBM3.3","1,919.20","Client Transport","130098573","18/12/2015","School Planning & Resources","Special - Transport","R3042"
"Wolverhampton City Council","http://opendatacommunities.org/id/metropolitan-district-council/wolverhampton","Boulton Travel Limited","BTWCBM5.3","1,920.00","Client Transport","130098575","16/12/2015","School Planning & Resources","Special - Transport","R3042"
"Wolverhampton City Council","http://opendatacommunities.org/id/metropolitan-district-council/wolverhampton","Boulton Travel Limited","BTWCBM4.3","1,947.50","Client Transport","130098574","16/12/2015","School Planning & Resources","Special - Transport","R3042"
"Wolverhampton City Council","http://opendatacommunities.org/id/metropolitan-district-council/wolverhampton","Boulton Travel Limited","BTWCBM1.3","2,182.10","Client Transport","130098572","16/12/2015","School Planning & Resources","Special - Transport","R3042"
"Wolverhampton City Council","http://opendatacommunities.org/id/metropolitan-district-council/wolverhampton","Brakes/Brakefresh","54574294","15.82","Provisions (Not for resale)","130100279","22/12/2015","Catering","Civic Centre Catering","R4101"
"Wolverhampton City Council","http://opendatacommunities.org/id/metropolitan-district-council/wolverhampton","Brakes/Brakefresh","9237661382","103.56","Provisions (Not for resale)","130098044","16/12/2015","Catering","Civic Centre Catering","R4101"
"Wolverhampton City Council","http://opendatacommunities.org/id/metropolitan-district-council/wolverhampton","Brakes/Brakefresh","9237661382","-103.56","Provisions (Not for resale)","130098044","16/12/2015","Catering","Civic Centre Catering","R4101"
"Wolverhampton City Council","http://opendatacommunities.org/id/metropolitan-district-council/wolverhampton","Brakes/Brakefresh","9237661382","95.04","Provisions (Not for resale)","130098044","16/12/2015","Catering","Civic Centre Catering","R4101"
"Wolverhampton City Council","http://opendatacommunities.org/id/metropolitan-district-council/wolverhampton","Brakes/Brakefresh","9237661382","8.52","Provisions (Not for resale)","130098044","16/12/2015","Catering","Civic Centre Catering","R4101"
"Wolverhampton City Council","http://opendatacommunities.org/id/metropolitan-district-council/wolverhampton","Brakes/Brakefresh","54608638","9.56","Provisions (Not for resale)","130100280","29/12/2015","Catering","Civic Centre Catering","R4101"
"Wolverhampton City Council","http://opendatacommunities.org/id/metropolitan-district-council/wolverhampton","Bristow & Sutor","160178","319.54","Services - Professional Fees","130098162","22/12/2015","Revenues & Benefits","Revenues","R4400"
"Wolverhampton City Council","http://opendatacommunities.org/id/metropolitan-district-council/wolverhampton","Bristow & Sutor","160241","-229.23","Services - Professional Fees","130098163","22/12/2015","Revenues & Benefits","Revenues","R4400"
"Wolverhampton City Council","http://opendatacommunities.org/id/metropolitan-district-council/wolverhampton","Bristow & Sutor","160241","229.23","Services - Professional Fees","130098163","22/12/2015","Revenues & Benefits","Revenues","R4400"
"Wolverhampton City Council","http://opendatacommunities.org/id/metropolitan-district-council/wolverhampton","Bristow & Sutor","160241","-229.23","Services - Professional Fees","130098163","22/12/2015","Revenues & Benefits","Revenues","R4400"
"Wolverhampton City Council","http://opendatacommunities.org/id/metropolitan-district-council/wolverhampton","Bristow & Sutor","159322","1,233.51","Services - Professional Fees","130095343","07/12/2015","Revenues & Benefits","Revenues","R4400"
"Wolverhampton City Council","http://opendatacommunities.org/id/metropolitan-district-council/wolverhampton","Bristow & Sutor","159465","4,363.00","Services - Professional Fees","130096436","09/12/2015","Revenues & Benefits","Revenues","R4400"
"Wolverhampton City Council","http://opendatacommunities.org/id/metropolitan-district-council/wolverhampton","Bristow & Sutor","159661","831.54","Services - Professional Fees","130096437","09/12/2015","Revenues & Benefits","Revenues","R4400"
"Wolverhampton City Council","http://opendatacommunities.org/id/metropolitan-district-council/wolverhampton","Bristow & Sutor","159863","1,059.25","Services - Professional Fees","130097274","18/12/2015","Revenues & Benefits","Revenues","R4400"
"Wolverhampton City Council","http://opendatacommunities.org/id/metropolitan-district-council/wolverhampton","Bristow & Sutor","158647","80.19","Bailiff Action","130095395","11/12/2015","Revenues & Benefits","Revenues","R9382"
"Wolverhampton City Council","http://opendatacommunities.org/id/metropolitan-district-council/wolverhampton","British Parking Association","42788","2,963.00","Subscriptions","130092029","07/12/2015","Parking Services","Car Parks Operational Staff","R4701"
"Wolverhampton City Council","http://opendatacommunities.org/id/metropolitan-district-council/wolverhampton","British Parking Association","42788","-2,963.00","Subscriptions","130092029","07/12/2015","Parking Services","Car Parks Operational Staff","R4701"
"Wolverhampton City Council","http://opendatacommunities.org/id/metropolitan-district-council/wolverhampton","British Parking Association","42788","2,963.00","Subscriptions","130092029","07/12/2015","Parking Services","Car Parks Operational Staff","R4701"
"Wolverhampton City Council","http://opendatacommunities.org/id/metropolitan-district-council/wolverhampton","British Red Cross","650081074","330","Materials","130095635","07/12/2015","Regulatory Services","Licensing - H.Carriage/Pr.Hire Vehicles","R4007"
"Wolverhampton City Council","http://opendatacommunities.org/id/metropolitan-district-council/wolverhampton","British Red Cross","650081069","385","Materials","130095634","07/12/2015","Regulatory Services","Licensing - H.Carriage/Pr.Hire Vehicles","R4007"
"Wolverhampton City Council","http://opendatacommunities.org/id/metropolitan-district-council/wolverhampton","British Red Cross","650081240","770","Materials","130095990","09/12/2015","Regulatory Services","Licensing - H.Carriage/Pr.Hire Vehicles","R4007"
"Wolverhampton City Council","http://opendatacommunities.org/id/metropolitan-district-council/wolverhampton","British Red Cross","650081243","110","Materials","130095991","09/12/2015","Regulatory Services","Licensing - H.Carriage/Pr.Hire Vehicles","R4007"
"Wolverhampton City Council","http://opendatacommunities.org/id/metropolitan-district-council/wolverhampton","British Standards Inst:Bsi Bus Info.","94248267/3000","1,589.00","Subscriptions","130098276","09/12/2015","Property Services","Property Services - Business Support","R4701"
"Wolverhampton City Council","http://opendatacommunities.org/id/metropolitan-district-council/wolverhampton","BT (Phone Bills)","CM 6077 6027 Q082 RP","80.97","Comms - Telephone Rental","130097522","07/12/2015","Bereavement Services","Crematorium","R4504"
"Wolverhampton City Council","http://opendatacommunities.org/id/metropolitan-district-council/wolverhampton","BT (Phone Bills)","CM594905521051 Q105 ZW(1)","94.7","Comms - Telephone Call charges","190190083","22/12/2015","Community Centres (Corporate Landlord)","Caretakers Community Centre","R4505"
"Wolverhampton City Council","http://opendatacommunities.org/id/metropolitan-district-council/wolverhampton","BT (Phone Bills)","CM592978981071 Q107 NQ(1)","85.65","Comms - Telephone Call charges","190190081","22/12/2015","Community Centres (Corporate Landlord)","Caretakers Community Centre","R4505"
"Wolverhampton City Council","http://opendatacommunities.org/id/metropolitan-district-council/wolverhampton","BT (Phone Bills)","CM593715561071 Q107 C3(1)","88.57","Comms - Telephone Call charges","190190071","22/12/2015","Community Centres (Corporate Landlord)","Caretakers Community Centre","R4505"
"Wolverhampton City Council","http://opendatacommunities.org/id/metropolitan-district-council/wolverhampton","BT (Phone Bills)","CM593715561061 Q106 8K (1)","83.72","Comms - Telephone Call charges","190190073","22/12/2015","Community Centres (Corporate Landlord)","Caretakers Community Centre","R4505"
"Wolverhampton City Council","http://opendatacommunities.org/id/metropolitan-district-council/wolverhampton","BT (Phone Bills)","CM 66892145 Q0181 VY","80.97","Comms - Telephone Call charges","190190070","22/12/2015","Community Centres (Corporate Landlord)","Caretakers Community Centre","R4505"
"Wolverhampton City Council","http://opendatacommunities.org/id/metropolitan-district-council/wolverhampton","BT (Phone Bills)","CM596092711031 Q103 03","80.97","Comms - Telephone Call charges","190190067","22/12/2015","Community Centres (Corporate Landlord)","Caretakers Community Centre","R4505"
"Wolverhampton City Council","http://opendatacommunities.org/id/metropolitan-district-council/wolverhampton","BT (Phone Bills)","CM599311850961 Q096 JF (1)","80.97","Comms - Telephone Call charges","190190075","22/12/2015","Community Centres (Corporate Landlord)","Caretakers Community Centre","R4505"
"Wolverhampton City Council","http://opendatacommunities.org/id/metropolitan-district-council/wolverhampton","BT (Phone Bills)","CM60725087Q0841Q084 11","80.97","Comms - Telephone Call charges","190190069","22/12/2015","Community Centres (Corporate Landlord)","Caretakers Community Centre","R4505"
"Wolverhampton City Council","http://opendatacommunities.org/id/metropolitan-district-council/wolverhampton","BT (Phone Bills)","CM616464920681Q068 WG","80.97","Comms - Telephone Call charges","190190068","22/12/2015","Community Centres (Corporate Landlord)","Caretakers Community Centre","R4505"
"Wolverhampton City Council","http://opendatacommunities.org/id/metropolitan-district-council/wolverhampton","BT (Phone Bills)","CM592978981071 Q107 NQ(2)","30","Comms - Telephone Call charges","190190082","22/12/2015","Community Centres (Corporate Landlord)","Caretakers Community Centre","R4505"
"Wolverhampton City Council","http://opendatacommunities.org/id/metropolitan-district-council/wolverhampton","BT (Phone Bills)","CM593715561071 Q107 C3(2)","30","Comms - Telephone Call charges","190190072","22/12/2015","Community Centres (Corporate Landlord)","Caretakers Community Centre","R4505"
"Wolverhampton City Council","http://opendatacommunities.org/id/metropolitan-district-council/wolverhampton","BT (Phone Bills)","CM593715561061 Q106 8K(2)","20","Comms - Telephone Call charges","190190074","22/12/2015","Community Centres (Corporate Landlord)","Caretakers Community Centre","R4505"
"Wolverhampton City Council","http://opendatacommunities.org/id/metropolitan-district-council/wolverhampton","BT (Phone Bills)","CM621955230631 Q063 2Q(2)","30","Comms - Telephone Call charges","190190080","22/12/2015","Community Centres (Corporate Landlord)","Caretakers Community Centre","R4505"
"Wolverhampton City Council","http://opendatacommunities.org/id/metropolitan-district-council/wolverhampton","BT (Phone Bills)","CM594905521051 Q105 ZW(2)","30","Comms - Telephone Call charges","190190084","22/12/2015","Community Centres (Corporate Landlord)","Caretakers Community Centre","R4505"
"Wolverhampton City Council","http://opendatacommunities.org/id/metropolitan-district-council/wolverhampton","BT (Phone Bills)","CM599311850961 Q096 JF (2)","30","Comms - Telephone Call charges","190190076","22/12/2015","Community Centres (Corporate Landlord)","Caretakers Community Centre","R4505"
"Wolverhampton City Council","http://opendatacommunities.org/id/metropolitan-district-council/wolverhampton","BT (Phone Bills)","CM591267231071 Q107 ON(2)","30","Comms - Telephone Call charges","190190078","22/12/2015","Community Centres (Corporate Landlord)","Caretakers Community Centre","R4505"
"Wolverhampton City Council","http://opendatacommunities.org/id/metropolitan-district-council/wolverhampton","BT (Phone Bills)","CM621955230631 Q063 2Q(1)","80.97","Comms - Telephone Call charges","190190079","22/12/2015","Community Centres (Corporate Landlord)","Caretakers Community Centre","R4505"
"Wolverhampton City Council","http://opendatacommunities.org/id/metropolitan-district-council/wolverhampton","BT (Phone Bills)","CM591267231071 Q107 ON(1)","95.97","Comms - Telephone Call charges","190190077","22/12/2015","Community Centres (Corporate Landlord)","Caretakers Community Centre","R4505"
"Wolverhampton City Council","http://opendatacommunities.org/id/metropolitan-district-council/wolverhampton","BT (Phone Bills)","CM 6283 8872 Q051 Y2","80.97","Comms - Telephone Rental","130099844","22/12/2015","Visitor Economy","Civic Hall Administration Overhead Account","R4504"
"Wolverhampton City Council","http://opendatacommunities.org/id/metropolitan-district-council/wolverhampton","BT (Phone Bills)","CM 6283 8872 Q051 Y2","20","Comms - Telephone Rental","130099844","22/12/2015","Visitor Economy","Civic Hall Administration Overhead Account","R4504"
"Wolverhampton City Council","http://opendatacommunities.org/id/metropolitan-district-council/wolverhampton","BT (Phone Bills)","CM 6285 4346 Q051 6N","95.97","Comms - Telephone Call charges","130099846","22/12/2015","Visitor Economy","Civic Hall Administration Overhead Account","R4505"
"Wolverhampton City Council","http://opendatacommunities.org/id/metropolitan-district-council/wolverhampton","BT (Phone Bills)","CM 6285 4346 Q051 6N","20","Comms - Telephone Call charges","130099846","22/12/2015","Visitor Economy","Civic Hall Administration Overhead Account","R4505"
"Wolverhampton City Council","http://opendatacommunities.org/id/metropolitan-district-council/wolverhampton","BT (Phone Bills)","CM 6283 8882 Q051 6X","95.97","Comms - Telephone Call charges","130099845","22/12/2015","Visitor Economy","Civic Hall Administration Overhead Account","R4505"
"Wolverhampton City Council","http://opendatacommunities.org/id/metropolitan-district-council/wolverhampton","BT (Phone Bills)","CM 6283 8882 Q051 6X","20","Comms - Telephone Call charges","130099845","22/12/2015","Visitor Economy","Civic Hall Administration Overhead Account","R4505"
"Wolverhampton City Council","http://opendatacommunities.org/id/metropolitan-district-council/wolverhampton","BT (Phone Bills)","CM 5966 6791 Q102 G5","93.7","Comms - Telephone Call charges","130099252","22/12/2015","Independent Living Service","Adaptations Team","R4505"
"Wolverhampton City Council","http://opendatacommunities.org/id/metropolitan-district-council/wolverhampton","BT (Phone Bills)","CM 5966 6791 Q102 G5","20","Comms - Telephone Call charges","130099252","22/12/2015","Independent Living Service","Adaptations Team","R4505"
"Wolverhampton City Council","http://opendatacommunities.org/id/metropolitan-district-council/wolverhampton","BT (Phone Bills)","CM 6470 0947 Q032 GS","95.97","Comms - Telephone Rental","130095752","03/12/2015","Learning Disability Provider","Ernest Bold Court","R4504"
"Wolverhampton City Council","http://opendatacommunities.org/id/metropolitan-district-council/wolverhampton","BT (Phone Bills)","CM 6292 4290 Q049 Y0","80.97","Comms - Telephone Rental","130095368","03/12/2015","Bereavement Services","Crematorium","R4504"
"Wolverhampton City Council","http://opendatacommunities.org/id/metropolitan-district-council/wolverhampton","BT (Phone Bills)","CM63029105 Q0471V","20","Fixtures and Fittings - R&M","190182534","03/12/2015","Engineering & Civic Centre","Management of Vacant Properties","R2502"
"Wolverhampton City Council","http://opendatacommunities.org/id/metropolitan-district-council/wolverhampton","BT (Phone Bills)","CM63029105 Q0485J","20","Fixtures and Fittings - R&M","190182536","03/12/2015","Engineering & Civic Centre","Management of Vacant Properties","R2502"
"Wolverhampton City Council","http://opendatacommunities.org/id/metropolitan-district-council/wolverhampton","BT (Phone Bills)","CM68462862 1001KY (2)","22.35","Comms - Telephone Rental","190182531","03/12/2015","Engineering & Civic Centre","Victoria Square, Block 11","R4504"
"Wolverhampton City Council","http://opendatacommunities.org/id/metropolitan-district-council/wolverhampton","BT (Phone Bills)","CM68462862 Q0026E (2)","12.49","Comms - Telephone Rental","190182533","03/12/2015","Engineering & Civic Centre","Victoria Square, Block 11","R4504"
"Wolverhampton City Council","http://opendatacommunities.org/id/metropolitan-district-council/wolverhampton","BT (Phone Bills)","CM68462862 1001KY","134.14","Comms - Telephone Rental","190182530","03/12/2015","Engineering & Civic Centre","Victoria Square, Block 11","R4504"
"Wolverhampton City Council","http://opendatacommunities.org/id/metropolitan-district-council/wolverhampton","BT (Phone Bills)","CM63029105 Q0471V(2)","74.97","Fixtures and Fittings - R&M","190182535","03/12/2015","Engineering & Civic Centre","Management of Vacant Properties","R2502"
"Wolverhampton City Council","http://opendatacommunities.org/id/metropolitan-district-council/wolverhampton","BT (Phone Bills)","CM68462862 Q0026E","74.97","Comms - Telephone Rental","190182532","03/12/2015","Engineering & Civic Centre","Victoria Square, Block 11","R4504"
"Wolverhampton City Council","http://opendatacommunities.org/id/metropolitan-district-council/wolverhampton","BT (Phone Bills)","CM59907452 Q092CX(2)","71.97","Fixtures and Fittings - R&M","190182539","03/12/2015","Engineering & Civic Centre","Management of Vacant Properties","R2502"
"Wolverhampton City Council","http://opendatacommunities.org/id/metropolitan-district-council/wolverhampton","BT (Phone Bills)","CM59907452 Q093GQ(2)","71.97","Fixtures and Fittings - R&M","190182541","03/12/2015","Engineering & Civic Centre","Management of Vacant Properties","R2502"
"Wolverhampton City Council","http://opendatacommunities.org/id/metropolitan-district-council/wolverhampton","BT (Phone Bills)","CM59907452 Q094KB(2)","71.97","Fixtures and Fittings - R&M","190182543","03/12/2015","Engineering & Civic Centre","Management of Vacant Properties","R2502"
"Wolverhampton City Council","http://opendatacommunities.org/id/metropolitan-district-council/wolverhampton","BT (Phone Bills)","CM59907452 Q094KB","20","Fixtures and Fittings - R&M","190182542","03/12/2015","Engineering & Civic Centre","Management of Vacant Properties","R2502"
"Wolverhampton City Council","http://opendatacommunities.org/id/metropolitan-district-council/wolverhampton","BT (Phone Bills)","CM63029105 Q0485J(2)","80.97","Fixtures and Fittings - R&M","190182537","03/12/2015","Engineering & Civic Centre","Management of Vacant Properties","R2502"
"Wolverhampton City Council","http://opendatacommunities.org/id/metropolitan-district-council/wolverhampton","BT (Phone Bills)","CM59907452 Q0918G","13.5","Fixtures and Fittings - R&M","190182544","03/12/2015","Engineering & Civic Centre","Management of Vacant Properties","R2502"
"Wolverhampton City Council","http://opendatacommunities.org/id/metropolitan-district-council/wolverhampton","BT (Phone Bills)","CM59907452 Q092CX","13.5","Fixtures and Fittings - R&M","190182538","03/12/2015","Engineering & Civic Centre","Management of Vacant Properties","R2502"
"Wolverhampton City Council","http://opendatacommunities.org/id/metropolitan-district-council/wolverhampton","BT (Phone Bills)","CM60134697 Q088QN","13.5","Comms - Telephone Rental","190182548","03/12/2015","Engineering & Civic Centre","Civic Centre","R4504"
"Wolverhampton City Council","http://opendatacommunities.org/id/metropolitan-district-council/wolverhampton","BT (Phone Bills)","CM60134697 Q088QN(2)","83.67","Comms - Telephone Rental","190182549","03/12/2015","Engineering & Civic Centre","Civic Centre","R4504"
"Wolverhampton City Council","http://opendatacommunities.org/id/metropolitan-district-council/wolverhampton","BT (Phone Bills)","CM60134697 Q089U9(2)","83.67","Comms - Telephone Rental","190182551","03/12/2015","Engineering & Civic Centre","Civic Centre","R4504"
"Wolverhampton City Council","http://opendatacommunities.org/id/metropolitan-district-council/wolverhampton","BT (Phone Bills)","CM59907452 Q0950D","20","Fixtures and Fittings - R&M","190182546","03/12/2015","Engineering & Civic Centre","Management of Vacant Properties","R2502"
"Wolverhampton City Council","http://opendatacommunities.org/id/metropolitan-district-council/wolverhampton","BT (Phone Bills)","CM60134697 Q089U9","20","Comms - Telephone Rental","190182550","03/12/2015","Engineering & Civic Centre","Civic Centre","R4504"
"Wolverhampton City Council","http://opendatacommunities.org/id/metropolitan-district-council/wolverhampton","BT (Phone Bills)","CM59907452 Q0950D(2)","76.97","Fixtures and Fittings - R&M","190182547","03/12/2015","Engineering & Civic Centre","Management of Vacant Properties","R2502"
"Wolverhampton City Council","http://opendatacommunities.org/id/metropolitan-district-council/wolverhampton","BT (Phone Bills)","CM59907452 Q0918G(2)","69.96","Fixtures and Fittings - R&M","190182545","03/12/2015","Engineering & Civic Centre","Management of Vacant Properties","R2502"
"Wolverhampton City Council","http://opendatacommunities.org/id/metropolitan-district-council/wolverhampton","BT (Phone Bills)","CM63029106 F049ES","35.57","Comms - Telephone Rental","190182552","03/12/2015","Engineering & Civic Centre","Management of Vacant Properties","R4504"
"Wolverhampton City Council","http://opendatacommunities.org/id/metropolitan-district-council/wolverhampton","BT (Phone Bills)","CM64904515 Q030WG","20","Comms - Telephone Rental","190182553","03/12/2015","Engineering & Civic Centre","Management of Vacant Properties","R4504"
"Wolverhampton City Council","http://opendatacommunities.org/id/metropolitan-district-council/wolverhampton","BT (Phone Bills)","CM64904515 Q030WG(2)","80.97","Comms - Telephone Rental","190182554","03/12/2015","Engineering & Civic Centre","Management of Vacant Properties","R4504"
"Wolverhampton City Council","http://opendatacommunities.org/id/metropolitan-district-council/wolverhampton","BT (Phone Bills)","CM 5937 4191 Q107 1H","80.97","Comms - Telephone Call charges","130095753","03/12/2015","Bereavement Services","Crematorium","R4505"
"Wolverhampton City Council","http://opendatacommunities.org/id/metropolitan-district-council/wolverhampton","BT (Phone Bills)","CM59907452 Q093GQ","20","Fixtures and Fittings - R&M","190182540","03/12/2015","Engineering & Civic Centre","Management of Vacant Properties","R2502"
"Wolverhampton City Council","http://opendatacommunities.org/id/metropolitan-district-council/wolverhampton","BT (Phone Bills)","CM 5937 4189 Q105 BF","80.65","Comms - Telephone Call charges","130097389","03/12/2015","Learning Disability Provider","Support Plus","R4505"
"Wolverhampton City Council","http://opendatacommunities.org/id/metropolitan-district-council/wolverhampton","BT (Phone Bills)","Q075SH","100.97","Comms - Telephone Rental","190188620","18/12/2015","Leisure Services","Central Baths","R4504"
"Wolverhampton City Council","http://opendatacommunities.org/id/metropolitan-district-council/wolverhampton","BT (Phone Bills)","CM59370306 Q10661","91.97","Comms - Telephone Call charges","190189331","18/12/2015","Engineering & Civic Centre","Management of Vacant Properties","R4505"
"Wolverhampton City Council","http://opendatacommunities.org/id/metropolitan-district-council/wolverhampton","BT (Phone Bills)","CM59370306 Q107AH(2)","12.83","Comms - Telephone Call charges","190189334","18/12/2015","Engineering & Civic Centre","Management of Vacant Properties","R4505"
"Wolverhampton City Council","http://opendatacommunities.org/id/metropolitan-district-council/wolverhampton","BT (Phone Bills)","CM5930306 Q10527(2)","11.99","Comms - Telephone Call charges","190189330","18/12/2015","Engineering & Civic Centre","Management of Vacant Properties","R4505"
"Wolverhampton City Council","http://opendatacommunities.org/id/metropolitan-district-council/wolverhampton","BT (Phone Bills)","CM59370306 Q103V0","83.46","Comms - Telephone Call charges","190189327","18/12/2015","Engineering & Civic Centre","Management of Vacant Properties","R4505"
"Wolverhampton City Council","http://opendatacommunities.org/id/metropolitan-district-council/wolverhampton","BT (Phone Bills)","CM59370306 Q103V0(2)","11.66","Comms - Telephone Call charges","190189328","18/12/2015","Engineering & Civic Centre","Management of Vacant Properties","R4505"
"Wolverhampton City Council","http://opendatacommunities.org/id/metropolitan-district-council/wolverhampton","BT (Phone Bills)","CM59370306 Q10661(2)","11.99","Comms - Telephone Call charges","190189332","18/12/2015","Engineering & Civic Centre","Management of Vacant Properties","R4505"
"Wolverhampton City Council","http://opendatacommunities.org/id/metropolitan-district-council/wolverhampton","BT (Phone Bills)","CM59370306 Q107AH","96.97","Comms - Telephone Call charges","190189333","18/12/2015","Engineering & Civic Centre","Management of Vacant Properties","R4505"
"Wolverhampton City Council","http://opendatacommunities.org/id/metropolitan-district-council/wolverhampton","BT (Phone Bills)","CM5930306 Q10527","91.97","Comms - Telephone Call charges","190189329","18/12/2015","Engineering & Civic Centre","Management of Vacant Properties","R4505"
"Wolverhampton City Council","http://opendatacommunities.org/id/metropolitan-district-council/wolverhampton","BT (Phone Bills)","CM61643549 Q06901 (1)","93.27","Fixtures and Fittings - R&M","190187249","16/12/2015","Community Centres (Corporate Landlord)","Caretakers Community Centre","R2502"
"Wolverhampton City Council","http://opendatacommunities.org/id/metropolitan-district-council/wolverhampton","BT (Phone Bills)","CM62213557 Q060IK (1)","80.97","Fixtures and Fittings - R&M","190187251","16/12/2015","Community Centres (Corporate Landlord)","Caretakers Community Centre","R2502"
"Wolverhampton City Council","http://opendatacommunities.org/id/metropolitan-district-council/wolverhampton","BT (Phone Bills)","CM63913030 Q038 GY(1)","80.97","Fixtures and Fittings - R&M","190187247","16/12/2015","Cleaning & Caretaking Service","Public Conveniences","R2502"
"Wolverhampton City Council","http://opendatacommunities.org/id/metropolitan-district-council/wolverhampton","BT (Phone Bills)","CM63913030 Q038 GY(2)","20","Fixtures and Fittings - R&M","190187248","16/12/2015","Cleaning & Caretaking Service","Public Conveniences","R2502"
"Wolverhampton City Council","http://opendatacommunities.org/id/metropolitan-district-council/wolverhampton","BT (Phone Bills)","CM62213557 Q060IK (2)","20","Fixtures and Fittings - R&M","190187252","16/12/2015","Community Centres (Corporate Landlord)","Caretakers Community Centre","R2502"
"Wolverhampton City Council","http://opendatacommunities.org/id/metropolitan-district-council/wolverhampton","BT (Phone Bills)","CM61643549 Q06901 (2)","20","Fixtures and Fittings - R&M","190187250","16/12/2015","Community Centres (Corporate Landlord)","Caretakers Community Centre","R2502"
"Wolverhampton City Council","http://opendatacommunities.org/id/metropolitan-district-council/wolverhampton","BT (Phone Bills)","CM61647061 Q06991(2)","20","Fixtures and Fittings - R&M","190187246","16/12/2015","Community Centres (Corporate Landlord)","Caretakers Community Centre","R2502"
"Wolverhampton City Council","http://opendatacommunities.org/id/metropolitan-district-council/wolverhampton","BT (Phone Bills)","CM62195552 Q06094 (2)","20","Fixtures and Fittings - R&M","190187254","16/12/2015","Community Centres (Corporate Landlord)","Caretakers Community Centre","R2502"
"Wolverhampton City Council","http://opendatacommunities.org/id/metropolitan-district-council/wolverhampton","BT (Phone Bills)","CM62195552 Q06094 (1)","80.97","Fixtures and Fittings - R&M","190187253","16/12/2015","Community Centres (Corporate Landlord)","Caretakers Community Centre","R2502"
"Wolverhampton City Council","http://opendatacommunities.org/id/metropolitan-district-council/wolverhampton","BT (Phone Bills)","CM59020054Q108PP(1)","80.97","Fixtures and Fittings - R&M","190187970","16/12/2015","Community Centres (Corporate Landlord)","Caretakers Community Centre","R2502"
"Wolverhampton City Council","http://opendatacommunities.org/id/metropolitan-district-council/wolverhampton","BT (Phone Bills)","CM63816541Q038T3(1)","103.77","Fixtures and Fittings - R&M","190187972","16/12/2015","Community Centres (Corporate Landlord)","Caretakers Community Centre","R2502"
"Wolverhampton City Council","http://opendatacommunities.org/id/metropolitan-district-council/wolverhampton","BT (Phone Bills)","CM62916736Q050K2(1)","103.56","Fixtures and Fittings - R&M","190187974","16/12/2015","Community Centres (Corporate Landlord)","Caretakers Community Centre","R2502"
"Wolverhampton City Council","http://opendatacommunities.org/id/metropolitan-district-council/wolverhampton","BT (Phone Bills)","CM62916736Q050K2(2)","20","Fixtures and Fittings - R&M","190187975","16/12/2015","Community Centres (Corporate Landlord)","Caretakers Community Centre","R2502"
"Wolverhampton City Council","http://opendatacommunities.org/id/metropolitan-district-council/wolverhampton","BT (Phone Bills)","CM63816541Q038T3(2)","20","Fixtures and Fittings - R&M","190187973","16/12/2015","Community Centres (Corporate Landlord)","Caretakers Community Centre","R2502"
"Wolverhampton City Council","http://opendatacommunities.org/id/metropolitan-district-council/wolverhampton","BT (Phone Bills)","CM59020054Q108PP(2)","30","Fixtures and Fittings - R&M","190187971","16/12/2015","Community Centres (Corporate Landlord)","Caretakers Community Centre","R2502"
"Wolverhampton City Council","http://opendatacommunities.org/id/metropolitan-district-council/wolverhampton","BT (Phone Bills)","CM 6024 9719 Q090 XY","97.63","Comms - Radios","130096943","16/12/2015","ICTS","Strategic ICTS (ICT Service Budget)","R4508"
"Wolverhampton City Council","http://opendatacommunities.org/id/metropolitan-district-council/wolverhampton","BT (Phone Bills)","CM 6024 9719 Q090 XY","-97.63","Comms - Radios","130096943","16/12/2015","ICTS","Strategic ICTS (ICT Service Budget)","R4508"
"Wolverhampton City Council","http://opendatacommunities.org/id/metropolitan-district-council/wolverhampton","BT (Phone Bills)","CM 6024 9719 Q090 XY","80.97","Comms - Radios","130096943","16/12/2015","ICTS","Strategic ICTS (ICT Service Budget)","R4508"
"Wolverhampton City Council","http://opendatacommunities.org/id/metropolitan-district-council/wolverhampton","BT (Phone Bills)","CM 6024 9719 Q090 XY","20","Comms - Radios","130096943","16/12/2015","ICTS","Strategic ICTS (ICT Service Budget)","R4508"
"Wolverhampton City Council","http://opendatacommunities.org/id/metropolitan-district-council/wolverhampton","BT (Phone Bills)","WN 8477 1646 Q009 SV","117.83","Comms - Telephone Call charges","130097562","16/12/2015","School Planning & Resources","Towers Outdoor Education Centre","R4505"
"Wolverhampton City Council","http://opendatacommunities.org/id/metropolitan-district-council/wolverhampton","BT (Phone Bills)","VP 42501170 Q06701","3,658.28","Comms - Telephone Rental","130099875","16/12/2015","Housing Revenue Account - Communities","Carelink","R4504"
"Wolverhampton City Council","http://opendatacommunities.org/id/metropolitan-district-council/wolverhampton","BT (Phone Bills)","CM62916745 Q050LP(2)","20","Fixtures and Fittings - R&M","190187242","16/12/2015","Community Centres (Corporate Landlord)","Caretakers Community Centre","R2502"
"Wolverhampton City Council","http://opendatacommunities.org/id/metropolitan-district-council/wolverhampton","BT (Phone Bills)","CM64619318 Q0332Y(1)","80.97","Fixtures and Fittings - R&M","190187243","16/12/2015","Community Centres (Corporate Landlord)","Caretakers Community Centre","R2502"
"Wolverhampton City Council","http://opendatacommunities.org/id/metropolitan-district-council/wolverhampton","BT (Phone Bills)","CM64619318 Q0332Y(2)","20","Fixtures and Fittings - R&M","190187244","16/12/2015","Community Centres (Corporate Landlord)","Caretakers Community Centre","R2502"
"Wolverhampton City Council","http://opendatacommunities.org/id/metropolitan-district-council/wolverhampton","BT (Phone Bills)","CM62916745 Q050LP(1)","103.56","Fixtures and Fittings - R&M","190187241","16/12/2015","Community Centres (Corporate Landlord)","Caretakers Community Centre","R2502"
"Wolverhampton City Council","http://opendatacommunities.org/id/metropolitan-district-council/wolverhampton","BT (Phone Bills)","CM61647061 Q06991(1))","80.97","Fixtures and Fittings - R&M","190187245","16/12/2015","Community Centres (Corporate Landlord)","Caretakers Community Centre","R2502"
"Wolverhampton City Council","http://opendatacommunities.org/id/metropolitan-district-council/wolverhampton","BT (Phone Bills)","CM 6122 3164 Q074 JA","80.97","Comms - Telephone Rental","130099254","16/12/2015","Older People Provider Services","Ekta Day Centre","R4504"
"Wolverhampton City Council","http://opendatacommunities.org/id/metropolitan-district-council/wolverhampton","BT (Phone Bills)","CM 5935 3200 Q107 Z8","80.97","Comms - Telephone Rental","130099251","16/12/2015","Older People Provider Services","Ekta Day Centre","R4504"
"Wolverhampton City Council","http://opendatacommunities.org/id/metropolitan-district-council/wolverhampton","BT (Phone Bills)","CM 5935 3200 Q107 Z8","20","Comms - Telephone Rental","130099251","16/12/2015","Older People Provider Services","Ekta Day Centre","R4504"
"Wolverhampton City Council","http://opendatacommunities.org/id/metropolitan-district-council/wolverhampton","BT (Phone Bills)","CM 6076 9175 Q082 DV","332.85","Comms - Radios","130099253","16/12/2015","ICTS","Strategic ICTS (ICT Service Budget)","R4508"
"Wolverhampton City Council","http://opendatacommunities.org/id/metropolitan-district-council/wolverhampton","BT (Phone Bills)","CM 6076 9175 Q082 DV","20","Comms - Radios","130099253","16/12/2015","ICTS","Strategic ICTS (ICT Service Budget)","R4508"
"Wolverhampton City Council","http://opendatacommunities.org/id/metropolitan-district-council/wolverhampton","BT (Phone Bills)","CM64704458 Q032 R9 - 02/12/2015","100.97","Comms - Telephone Call charges","190187588","16/12/2015","Parking Services","Car Parks Operational Staff","R4505"
"Wolverhampton City Council","http://opendatacommunities.org/id/metropolitan-district-council/wolverhampton","BT (Phone Bills)","CM 6347 0529 Q042 AQ","80.97","Computing - Internet","190187595","16/12/2015","Older People Provider Services","Warstones Resource Centre","R4537"
"Wolverhampton City Council","http://opendatacommunities.org/id/metropolitan-district-council/wolverhampton","BT (Phone Bills)","CM 6347 0529 Q042 AQ1","20","Computing - Internet","190187596","16/12/2015","Older People Provider Services","Warstones Resource Centre","R4537"
"Wolverhampton City Council","http://opendatacommunities.org/id/metropolitan-district-council/wolverhampton","Brophy Grounds Maintenance Limited","90463745","3,750.00","Grounds Maintenance - Contract","130094408","03/12/2015","Environmental Maintenance","Ground Maintenance West","R2075"
"Wolverhampton City Council","http://opendatacommunities.org/id/metropolitan-district-council/wolverhampton","Brophy Grounds Maintenance Limited","90463745","87,775.00","Grounds Maintenance - Contract","130094408","03/12/2015","Environmental Maintenance","Ground Maintenance West","R2075"
"Wolverhampton City Council","http://opendatacommunities.org/id/metropolitan-district-council/wolverhampton","Brophy Grounds Maintenance Limited","90473203","87,775.00","Grounds Maintenance - Contract","130098267","22/12/2015","Environmental Maintenance","Ground Maintenance West","R2075"
"Wolverhampton City Council","http://opendatacommunities.org/id/metropolitan-district-council/wolverhampton","Brophy Grounds Maintenance Limited","90473203","3,750.00","Grounds Maintenance - Contract","130098267","22/12/2015","Environmental Maintenance","Ground Maintenance West","R2075"
"Wolverhampton City Council","http://opendatacommunities.org/id/metropolitan-district-council/wolverhampton","Brophy Grounds Maintenance Limited","90473203","91,525.00","Grounds Maintenance - Contract","130100147","29/12/2015","Environmental Maintenance","Ground Maintenance West","R2075"
"Wolverhampton City Council","http://opendatacommunities.org/id/metropolitan-district-council/wolverhampton","Browne Jacobson Llp","310253","871.5","Services - Professional Fees","130097475","18/12/2015","HR Advice","HR Advice","R4400"
"Wolverhampton City Council","http://opendatacommunities.org/id/metropolitan-district-council/wolverhampton","Browne Jacobson Llp","310253","110","Services - Professional Fees","130097475","18/12/2015","HR Advice","HR Advice","R4400"
"Wolverhampton City Council","http://opendatacommunities.org/id/metropolitan-district-council/wolverhampton","Browne Jacobson Llp","WT090222/SC -2/309904","710","Insurance - General","190183913","07/12/2015","Audit Services","Wolverhampton Homes Claims","R4962"
"Wolverhampton City Council","http://opendatacommunities.org/id/metropolitan-district-council/wolverhampton","Browne Jacobson Llp","WT090222/SC -1/309904","4,649.80","Insurance - General","190183912","07/12/2015","Audit Services","Wolverhampton Homes Claims","R4962"
"Wolverhampton City Council","http://opendatacommunities.org/id/metropolitan-district-council/wolverhampton","Browne Jacobson Llp","310262","11,702.10","Services - Professional Fees","130097476","18/12/2015","HR Advice","HR Advice","R4400"
"Wolverhampton City Council","http://opendatacommunities.org/id/metropolitan-district-council/wolverhampton","Browne Jacobson Llp","TP110177/LG 310717","1,943.20","Insurance - General","190190352","29/12/2015","Audit Services","Legal Liability","R4962"
"Wolverhampton City Council","http://opendatacommunities.org/id/metropolitan-district-council/wolverhampton","Broxap Limited","INV182946","9,487.00","Materials","130097349","18/12/2015","Environmental Maintenance","Graffiti Removal Team","R4007"
"Wolverhampton City Council","http://opendatacommunities.org/id/metropolitan-district-council/wolverhampton","BT (Business)","IN03105744","870","Computing - Purchase of Hardware","130095701","07/12/2015","School Planning & Resources","Technical Support","R4530"
"Wolverhampton City Council","http://opendatacommunities.org/id/metropolitan-district-council/wolverhampton","BT (Business)","IN03067423","805","Computing - Purchase of Hardware","130092722","09/12/2015","School Planning & Resources","Technical Support","R4530"
"Wolverhampton City Council","http://opendatacommunities.org/id/metropolitan-district-council/wolverhampton","BT (Business)","GP 0003 8503 M005 SM","266.21","Services - Fees and Charges","130098641","09/12/2015","Leisure Services","Aldersley Leisure Village","R4401"
"Wolverhampton City Council","http://opendatacommunities.org/id/metropolitan-district-council/wolverhampton","BT (Business)","IN03107271","121.98","Computing - Purchase of Hardware","130095702","09/12/2015","School Planning & Resources","Technical Support","R4530"
"Wolverhampton City Council","http://opendatacommunities.org/id/metropolitan-district-council/wolverhampton","BT (Business)","518167","1,038.46","Construction and Conversion","130096616","16/12/2015","","Westside","C1100"
"Wolverhampton City Council","http://opendatacommunities.org/id/metropolitan-district-council/wolverhampton","BT Global","WM 4097 4775 Q004 1C","84","Comms - Telephone Rental","130095751","22/12/2015","Operation & Maintenance of Existing Network","UTC Wolverhampton","R4504"
"Wolverhampton City Council","http://opendatacommunities.org/id/metropolitan-district-council/wolverhampton","BT Global","WM 4097 4775 Q004 1C","-20.42","Comms - Telephone Rental","130095751","22/12/2015","Operation & Maintenance of Existing Network","UTC Wolverhampton","R4504"
"Wolverhampton City Council","http://opendatacommunities.org/id/metropolitan-district-council/wolverhampton","BT Global","395278","9,645.22","TPP - Rechargeable Works Costs","130099183","16/12/2015","Operation & Maintenance of Existing Network","UTC only � External Rechargeable Works","R5730"
"Wolverhampton City Council","http://opendatacommunities.org/id/metropolitan-district-council/wolverhampton","BT Global","395288","9,155.58","TPP - Rechargeable Works Costs","130099184","16/12/2015","Operation & Maintenance of Existing Network","UTC only � External Rechargeable Works","R5730"
"Wolverhampton City Council","http://opendatacommunities.org/id/metropolitan-district-council/wolverhampton","BT Global","397899","10,298.25","TPP - Rechargeable Works Costs","130099185","16/12/2015","Operation & Maintenance of Existing Network","UTC only � External Rechargeable Works","R5730"
"Wolverhampton City Council","http://opendatacommunities.org/id/metropolitan-district-council/wolverhampton","Bulk Minerals Limited","352","163.59","Materials","130097229","22/12/2015","Highways Maintenance","Patching","R4007"
"Wolverhampton City Council","http://opendatacommunities.org/id/metropolitan-district-council/wolverhampton","United Living","Sl/002653","461,276.00","Construction and Conversion","130100794","22/12/2015","","Decent Homes - Stock Improvements","C1100"
"Wolverhampton City Council","http://opendatacommunities.org/id/metropolitan-district-council/wolverhampton","United Living","Sl/002662","196,185.00","Construction and Conversion","130100797","22/12/2015","","Decent Homes - Stock Improvements","C1100"
"Wolverhampton City Council","http://opendatacommunities.org/id/metropolitan-district-council/wolverhampton","United Living","Sl/002659","176,019.00","Construction and Conversion","130100796","22/12/2015","","Decent Homes - Stock Improvements","C1100"
"Wolverhampton City Council","http://opendatacommunities.org/id/metropolitan-district-council/wolverhampton","United Living","SI/002658","90,176.00","Construction and Conversion","130100360","18/12/2015","","Structural works","C1100"
"Wolverhampton City Council","http://opendatacommunities.org/id/metropolitan-district-council/wolverhampton","United Living","SI/002654","138,383.00","Construction and Conversion","130100356","18/12/2015","","Decent Homes - Stock Improvements","C1100"
"Wolverhampton City Council","http://opendatacommunities.org/id/metropolitan-district-council/wolverhampton","United Living","SI/002657","51,942.00","R&M - Departmental planned (external)","130100359","18/12/2015","Housing Revenue Account","Amounts to be Settled with Wolverhampton Homes","R2001"
"Wolverhampton City Council","http://opendatacommunities.org/id/metropolitan-district-council/wolverhampton","United Living","SI/002655","105,742.00","Construction and Conversion","130100357","18/12/2015","","New Build infill schemes","C1100"
"Wolverhampton City Council","http://opendatacommunities.org/id/metropolitan-district-council/wolverhampton","United Living","SI/002652","265,786.00","Construction and Conversion","130100354","18/12/2015","","Decent Homes - Stock Condition","C1100"
"Wolverhampton City Council","http://opendatacommunities.org/id/metropolitan-district-council/wolverhampton","United Living","SI/002656","153,562.00","Construction and Conversion","130100358","18/12/2015","","Refurbishment of Voids","C1100"
"Wolverhampton City Council","http://opendatacommunities.org/id/metropolitan-district-council/wolverhampton","Burdens Limited","27545398","171","Materials","130095059","07/12/2015","Highways Maintenance","Patching","R4007"
"Wolverhampton City Council","http://opendatacommunities.org/id/metropolitan-district-council/wolverhampton","Bury M.B.C","33377739","19,079.09","TPP - Payments to Local Authorities","130100450","29/12/2015","Special Educational Needs","SEN Education OOC","R5100"
"Wolverhampton City Council","http://opendatacommunities.org/id/metropolitan-district-council/wolverhampton","Bury M.B.C","33377713","52,581.82","TPP - Payments to Local Authorities","130100449","29/12/2015","Special Educational Needs","SEN Education OOC","R5100"
"Wolverhampton City Council","http://opendatacommunities.org/id/metropolitan-district-council/wolverhampton","Bushbury Triangle Neighbour.Nursery","NEF Aut 2015 Inst 2","17,209.31","TPP - Private Nursery Education Funding","190188598","18/12/2015","Childrens Centres & Early Years","Early Years Non Maintained Schools","R5035"
"Wolverhampton City Council","http://opendatacommunities.org/id/metropolitan-district-council/wolverhampton","Bytes Software Services Limited","431414","125,862.08","Computing - Licences","130097989","22/12/2015","ICTS","Digital Transformation Programme","R4535"
"Wolverhampton City Council","http://opendatacommunities.org/id/metropolitan-district-council/wolverhampton","Bytes Software Services Limited","430639","9,878.19","Plant, Equipment, Machinery & Computer Hardware","130100032","18/12/2015","","ICT General Programme","C3000"
"Wolverhampton City Council","http://opendatacommunities.org/id/metropolitan-district-council/wolverhampton","Bytes Software Services Limited","430809","8,094.24","Plant, Equipment, Machinery & Computer Hardware","130097130","16/12/2015","","ICT General Programme","C3000"
"Wolverhampton City Council","http://opendatacommunities.org/id/metropolitan-district-council/wolverhampton","Caci Limited (Social Software)","ES08053","2,487.50","Computing - Maint Agreements","130098577","22/12/2015","Youth Offending","Youth Offending Team","R4534"
"Wolverhampton City Council","http://opendatacommunities.org/id/metropolitan-district-council/wolverhampton","Cale Briparc Limited","108205","186","Equipment - Purchase","130097025","03/12/2015","Parking Services","Car Parks Operational Staff","R4000"
"Wolverhampton City Council","http://opendatacommunities.org/id/metropolitan-district-council/wolverhampton","Cale Briparc Limited","109036","70.95","Equipment - R & M","130099953","18/12/2015","Parking Services","Car Parks Operational Staff","R4003"
